Cogmind - Beta 16 @@@ ROGUE MODE // 2025.11.30 @ 23:01:39 Player: JuustuToug Result: Destroyed by Striker with Plasma Lance Performance ------------- Evolutions (9) 4500 Regions Visited (43) 8600 Robots Destroyed (364) 1820 Value Destroyed (17812) 17812 Prototype IDs (70) 1400 Alien Tech Used (0) 0 Bonus (13960) 13960 TOTAL SCORE: 48092 Bonus ------- High Alert Combat Kills 2609 Follower Combat Kills 3135 Entered Garrisons 2800 Used RIF Installer 5500 Aligned with FarCom 300 Friendly Fire -384 Cogmind --------- Core Integrity 0/1600 Matter 300/300 Energy 48/100 System Corruption 0% Temperature Cool (0) Movement Core (50) Location -1/Command Parts ------- > --- POWER (2) -------- (None) > --- PROPULSION (6) --- (None) > --- UTILITY (13) ----- Core Analyzer System Shield Relay Coupler [Swarmer] (82) Relay Coupler [Sentry] (39) > --- WEAPON (4) ------- (None) > --- INVENTORY (5) ---- Light Particle Reactor Micro Antimatter Reactor Micro Antimatter Reactor Experimental Power Amplifier Peak State ------------ > --- POWER ------------ Micro Antimatter Reactor Micro Antimatter Reactor > --- PROPULSION ------- Nuclear Pulse Array Nuclear Pulse Array Diametric Drive Electron Diverter > --- UTILITY ---------- Experimental Power Amplifier Gravity Neutralizer Machine Analyzer Advanced Targeting Computer Advanced Targeting Computer Stasis Canceller Advanced Phase Shifter Hardened Medium Armor Plating Experimental Thermal Shield Relay Coupler [NC] Relay Coupler [Swarmer] Relay Coupler [Grunt] Relay Coupler [Sentry] > --- WEAPON ----------- Advanced Remote Datajack Gravity Flail Centrium Greatsword > --- INVENTORY -------- Light Antimatter Reactor Relay Coupler [Specialist] Fusion Bomb Launcher Plasma Lance [Rating: 152] Favorites ----------- Power Improved Deuterium Engine Engine Improved Deuterium Engine Power Core Light Nuclear Core Reactor Micro Antimatter Reactor Propulsion Light Treads Treads Light Treads Leg Armored Leg Wheel Wheel Hover Unit Combat Linear Gravjet Flight Unit Diametric Drive Utility High-capacity Storage Unit Device Advanced Heat Sink Storage High-capacity Storage Unit Processor Core Analyzer Hackware Relay Coupler [NC] Protection Hardened Medium Armor Plating Weapon Advanced Beam Rifle Energy Gun Advanced Beam Rifle Energy Cannon Heavy Ion Cannon Ballistic Gun Improved Assault Rifle Ballistic Cannon Light Cannon Launcher Mini Grenade Launcher Special Weapon Advanced Remote Datajack Impact Weapon Gravity Flail Slashing Weapon Longsword +1 Piercing Weapon Plasma Lance Special Melee Weapon Improved Datajack Build | -11 -10 -10 -9 -9 -9 -8 -8 -8 -8 -8 -8 -8 -8 -8 -7 -7 -7 -7 -6 -6 -5 -5 -5 -5 -4 -4 -4 -4 -4 -4 -4 -3 -3 -3 -3 -2 -2 -2 -2 -1 -1 -1 -1 ------- Run | Yrd Mat Min Mat Min Exi Min Mat Gar Mat Gar Mat Gar Mat Gar Fac Was Fac Gar Fac Gar Fac Upp Upp War Pro Fac Gar Fac Gar Fac Gar Res Gar Res Gar Res Gar Res Gar Acc Gar Acc Com Slots Evolved 18 | . . . 2 . . . 2 . . . . . . . 2 . . . 2 . 2 . . . . 2 . . . . . 2 . . . 2 . . . 2 . . . Power 1 | . . . . . . . . . . . . . . . 1 . . . . . . . . . . . . . . . . . . . . . . . . . . . . Propulsion 4 | . . . . . . . 2 . . . . . . . . . . . . . . . . . . 1 . . . . . . . . . 1 . . . . . . . Utility 11 | . . . 1 . . . . . . . . . . . . . . . 2 . 2 . . . . 1 . . . . . 2 . . . 1 . . . 2 . . . Weapon 2 | . . . 1 . . . . . . . . . . . 1 . . . . . . . . . . . . . . . . . . . . . . . . . . . . Parts Attached 405 | 8 7 . 26 . 1 8 13 16 3 3 5 3 20 10 6 5 4 14 4 27 33 22 21 . 3 11 15 15 2 11 4 7 6 9 8 3 4 7 5 3 10 10 13 Power 61 | 1 2 . 4 . . 1 2 4 1 . 1 . . 3 2 . 3 3 . 4 5 2 2 . . . 3 4 1 1 . 1 . 2 1 . 1 . 2 . . 3 2 Engine 26 | 1 2 . 4 . . . 2 1 1 . . . . . . . 2 2 . 4 5 1 1 . . . . . . . . . . . . . . . . . . . . Core 19 | . . . . . . 1 . 3 . . 1 . . 3 2 . 1 1 . . . 1 1 . . . 2 2 . 1 . . . . . . . . . . . . . Reactor 16 | . . . . . . . . . . . . . . . . . . . . . . . . . . . 1 2 1 . . 1 . 2 1 . 1 . 2 . . 3 2 Propulsion 106 | 2 . . 8 . . . 6 6 . . 2 2 11 2 1 . 1 5 . 5 11 5 7 . 1 1 5 4 . 6 . . 1 2 1 1 . 3 . . 3 2 2 Treads 53 | 2 . . 8 . . . 6 . . . 1 2 11 2 1 . 1 5 . 5 3 3 2 . . . . . . . . . . . . . . . . . 1 . . Leg 10 | . . . . . . . . 6 . . 1 . . . . . . . . . 2 1 . . . . . . . . . . . . . . . . . . . . . Wheel 4 | . . . . . . . . . . . . . . . . . . . . . 3 . 1 . . . . . . . . . . . . . . . . . . . . Hover 4 | . . . . . . . . . . . . . . . . . . . . . 1 . 1 . . . . . . . . . . . . . . . . . . . 2 Flight 35 | . . . . . . . . . . . . . . . . . . . . . 2 1 3 . 1 1 5 4 . 6 . . 1 2 1 1 . 3 . . 2 2 . Utility 142 | 2 1 . 5 . 1 4 2 1 2 2 1 . 4 4 . 1 . 2 2 8 10 8 8 . . 7 5 5 1 3 4 4 5 3 6 2 3 3 2 3 4 5 9 Device 70 | 1 . . 2 . . 3 . 1 . . 1 . 3 3 . 1 . 1 1 7 8 4 5 . . 3 1 4 . 1 . 3 . 1 . 1 1 3 1 1 2 2 5 Storage 5 | 1 1 . 2 . 1 . . . . . . . . . . . . . . . . . . . . . . . . . . . . . . . . . . . . . . Processor 22 | . . . 1 . . . 2 . 1 1 . . 1 . . . . . . . . 3 . . . 2 . 1 . 2 . 1 . . . 1 . . . 2 . 2 2 Hackware 38 | . . . . . . . . . . 1 . . . . . . . 1 1 1 1 1 3 . . 2 4 . 1 . 4 . 5 . 6 . 2 . 1 . 2 . 2 Protection 7 | . . . . . . 1 . . 1 . . . . 1 . . . . . . 1 . . . . . . . . . . . . 2 . . . . . . . 1 . Artifact . | . . . . . . . . . . . . . . . . . . . . . . . . . . . . . . . . . . . . . . . . . . . . Weapon 96 | 3 4 . 9 . . 3 3 5 . 1 1 1 5 1 3 4 . 4 2 10 7 7 4 . 2 3 2 2 . 1 . 2 . 2 . . . 1 1 . 3 . . Energy Gun 36 | 2 . . 5 . . 2 1 2 . . 1 . 4 1 1 2 . 2 2 4 4 1 1 . . . . . . . . . . . . . . . . . 1 . . Energy Cannon 14 | . . . . . . . 1 . . . . . . . 2 . . 1 . 5 1 3 1 . . . . . . . . . . . . . . . . . . . . Ballistic Gun 14 | 1 2 . 3 . . . . 2 . . . 1 . . . . . . . . 1 2 1 . . . . . . . . . . . . . . . . . 1 . . Ballistic Cannon 4 | . 1 . . . . . . . . . . . . . . 1 . . . 1 . 1 . . . . . . . . . . . . . . . . . . . . . Launcher 7 | . . . . . . 1 . . . . . . 1 . . 1 . 1 . . . . . . 1 . . 1 . . . 1 . . . . . . . . . . . Special Weapon 8 | . . . . . . . . 1 . 1 . . . . . . . . . . 1 . . . . . 1 1 . . . . . 1 . . . 1 1 . . . . Impact Weapon 6 | . 1 . 1 . . . . . . . . . . . . . . . . . . . . . 1 2 1 . . . . . . . . . . . . . . . . Slashing Weapon 3 | . . . . . . . 1 . . . . . . . . . . . . . . . 1 . . . . . . . . . . . . . . . . . 1 . . Piercing Weapon 2 | . . . . . . . . . . . . . . . . . . . . . . . . . . 1 . . . . . . . 1 . . . . . . . . . Special Melee Weapon 2 | . . . . . . . . . . . . . . . . . . . . . . . . . . . . . . 1 . 1 . . . . . . . . . . . Unidentified Prototypes 32 | . . . 3 . . . 1 . . . . . 2 . . 2 . . 1 . 2 . . . . 1 . 3 . 1 . 1 . 3 . . . 3 . 1 6 . 2 Corrupted Parts 5 | . . . . . . . . . . . . . . . . . . . . . . 1 2 . 1 . 1 . . . . . . . . . . . . . . . . System Corruption 25 | . . . . . . . . . . . . . . . . . . . . . . 4 11 . 4 . 6 . . . . . . . . . . . . . . . . Parts Lost 131 | . 3 . 1 . . 2 1 3 . . 1 2 . 11 . . 1 2 . 9 21 3 11 . . 9 7 1 . 1 1 . 3 . 1 . 1 . 3 1 4 11 17 Power 22 | . 1 . . . . . 1 . . . 1 . . 3 . . 1 1 . 2 4 . 1 . . 1 1 1 . . . . . . 1 . . . 1 . . 1 1 Propulsion 39 | . . . . . . . . 1 . . . 1 . 4 . . . . . 3 6 2 4 . . 4 4 . . . . . 2 . . . . . . . 1 3 4 Utility 41 | . . . 1 . . . . . . . . . . 2 . . . . . 1 3 1 3 . . 4 2 . . 1 1 . 1 . . . 1 . 2 1 3 4 10 Weapon 29 | . 2 . . . . 2 . 2 . . . 1 . 2 . . . 1 . 3 8 . 3 . . . . . . . . . . . . . . . . . . 3 2 Highest Loss Streak 12 | . 1 . 1 . . 1 1 1 . . 1 1 . 10 . . 1 1 . 5 12 1 8 . . 4 6 1 . 1 1 . 2 . 1 . 1 . 2 1 3 8 12 To Critical Strikes 1 | . . . . . . . . . . . . . . . . . . . . . . . . . . . . . . . . . . . . . . . . . . 1 . Average Backups 14 | 2 11 14 18 20 20 19 19 19 19 18 17 18 18 18 18 19 20 19 18 18 18 4 4 5 4 4 4 4 5 5 4 4 4 4 4 4 5 5 4 3 3 4 4 Power 1 | . . . 1 . 2 3 3 3 3 1 . 1 1 . . . . . 1 1 1 . . . . . . 1 1 1 1 1 1 . 1 1 1 1 . 1 1 1 2 Propulsion 3 | . 2 3 4 5 5 5 3 4 4 4 4 3 4 4 4 6 5 5 6 3 . . . . . . . 1 1 1 1 1 . . . . . . . . . . . Utility 3 | . 3 7 5 4 3 2 2 3 4 4 3 4 4 4 6 6 6 5 4 4 6 1 1 2 2 2 1 1 1 1 1 1 2 1 1 1 2 2 2 . . . . Weapon 5 | . 4 4 6 10 8 8 8 8 7 7 6 6 6 5 4 5 6 5 5 7 7 2 1 2 1 1 2 1 2 1 1 1 1 1 1 2 2 2 2 2 2 2 1 Tool/Special . | . . . . . . . . . . . . . . . . . . . . . . . . . . . . . . . . . . . . . . . . . . . . Unused Backups 92 | . 3 1 13 1 3 1 4 3 3 3 5 . 5 1 4 3 . 9 . 3 8 2 3 . 1 1 . 1 . 1 . 1 . 2 . 1 1 . 1 1 . 2 1 Power 15 | . 2 . 1 . . . 3 . 2 1 . . . . . . . . . . . . 2 . . . . . . . . . . . . 1 1 . . . . 1 1 Propulsion 11 | . 1 . 1 . . . . 2 . 2 1 . 1 . . . . 2 . . . . . . . . . . . 1 . . . . . . . . . . . . . Utility 37 | . . . 3 . 1 1 . 1 1 . 3 . . 1 4 2 . 7 . . 5 . 1 . . 1 . 1 . . . . . 2 . . . . 1 1 . 1 . Weapon 29 | . . 1 8 1 2 . 1 . . . 1 . 4 . . 1 . . . 3 3 2 . . 1 . . . . . . 1 . . . . . . . . . . . Tool/Special . | . . . . . . . . . . . . . . . . . . . . . . . . . . . . . . . . . . . . . . . . . . . . Average Slot Usage (%) 93 | . 99 100 99 100 100 99 99 99 100 100 99 98 99 96 99 99 99 95 84 93 87 79 77 70 76 69 64 79 89 93 92 88 94 85 84 81 85 83 80 78 84 81 64 Engine 5 | . 14 14 11 11 11 7 6 2 6 9 7 . . . . . 7 10 13 11 8 4 3 5 5 3 . . . . . . . . . . . . . . . . . Core 3 | . . . . . . 3 2 6 2 . 1 9 9 8 14 15 7 3 . . . 3 3 . . . 2 2 . . 5 3 . . . . . . . . . . . Reactor 1 | . . . . . . . . . . . . . . . . . . . . . . . . . . . 2 6 10 9 5 4 9 8 8 8 8 8 8 8 8 7 5 Treads 16 | . 27 28 22 22 22 22 35 8 . . 1 19 34 34 30 30 30 26 13 21 9 12 5 . . . . . . . . . . . . . . . . . . . . Leg 4 | . . . . . . . . 26 36 36 34 16 1 . . . . . . . 1 . . . . . . . . . . . . . . . . . . . . . . Flight 3 | . . . . . . . . . . . . . . . . . . . . . . 1 3 17 22 17 15 20 26 26 26 23 22 19 19 17 21 18 17 16 16 17 5 Device 14 | . 14 14 21 22 22 16 17 9 8 8 9 9 8 8 7 7 7 6 12 18 24 21 15 11 11 7 9 12 15 16 14 17 19 19 19 17 16 17 17 20 19 14 13 Storage 6 | . 14 14 11 11 11 11 9 9 9 9 9 9 8 9 7 7 7 7 6 6 4 . . . . . . . . . . . . . . . . . . . . . . Processor 5 | . . . . . . . . 9 9 9 9 9 9 9 7 7 7 7 6 6 4 6 7 5 5 5 10 11 10 8 10 9 9 9 9 11 8 8 8 10 11 13 14 Hackware 4 | . . . . . . . . . . . . . . . . . . . 5 . 2 4 13 23 23 24 17 15 15 15 13 14 18 14 15 13 16 17 15 12 14 18 20 Energy Gun 11 | . . . 19 22 22 21 18 16 9 13 17 9 26 22 17 14 15 12 6 10 11 1 1 . . . . . . . . . . . . . . . . . . . . Energy Cannon 3 | . . . . . . . 7 4 . . . . . . 4 6 7 11 12 12 6 6 8 . . . . . . . . . . . . . . . . . . . . Ballistic Gun 4 | . 13 14 11 11 11 11 . 1 14 8 9 8 . . . . . . . . . 9 4 . . . . . . . . . . . . . . . . . . . . Ballistic Cannon 1 | . 12 14 2 . . . . . . . . . . . . . . . . . . . . . . . . . . . . . . . . . . . . . . . . Slashing Weapon 1 | . . . . . . . . 3 3 4 . 8 . 4 7 7 7 4 6 2 1 . 1 5 5 1 . . . . . . . . . . . . . . 1 3 . Peak Build Rating 152 | 7 8 8 17 17 18 29 39 52 52 52 49 50 42 42 50 55 54 71 80 83 88 80 80 55 60 75 76 105 98 112 107 130 122 129 115 125 125 124 125 139 152 152 118 Average Rating 53 | 5 7 8 15 17 17 21 32 46 49 50 48 46 37 37 48 50 53 57 77 67 75 66 62 55 57 65 55 84 98 106 104 110 119 115 111 116 122 118 120 130 136 132 94 On Entrance 65 | . 7 8 8 17 17 18 29 38 48 52 49 46 42 38 38 49 53 54 70 78 65 14 80 55 55 57 50 48 98 98 104 105 122 111 115 109 125 121 120 120 129 140 84 Avg Prop Armor Cover (%) 9 | . . . . . . . . . . . 9 16 21 . . . . . . 11 7 13 9 . 5 4 . . 21 . . . . . . . . . . . . . 5 Naked Turns 13 | . . . . . . . . . . . . . . . . . . . . . 13 . . . . . . . . . . . . . . . . . . . . . . Heaviest Build 102 | 14 31 31 56 54 54 57 60 67 62 58 58 59 60 54 68 75 83 86 84 102 99 62 63 15 15 21 28 32 31 34 31 38 33 42 38 38 38 38 44 45 53 38 34 Greatest Support 150 | 40 40 40 40 40 40 40 84 84 63 63 63 47 80 80 88 88 91 150 150 150 110 135 98 20 24 24 34 35 35 44 35 44 44 44 44 44 43 57 45 57 57 54 36 Greatest Overweight (x) 23 | . . . 1 1 1 1 . 4 . . 1 2 2 . . . . . . 1 23 2 12 . . 1 1 . 2 1 . . . . . . . 1 . . 1 . 1 Average Overweight (x) . | . . . . 1 1 1 . . . . . 1 . . . . . . . . 1 . 1 . . . . . . . . . . . . . . . . . . . . Largest Inventory Capacity 20 | 8 15 15 20 20 20 20 20 20 20 20 20 20 20 20 20 20 20 20 20 20 20 5 5 5 5 5 5 5 5 5 5 5 5 5 5 5 5 5 5 5 5 5 5 Average Capacity 15 | 7 13 15 18 20 20 20 20 20 20 20 20 20 19 20 20 20 20 20 20 20 19 5 5 5 5 5 5 5 5 5 5 5 5 5 5 5 5 5 5 5 5 5 5 Most Carried 20 | 4 15 15 20 20 20 20 20 20 20 20 20 20 20 20 20 20 20 20 20 20 20 5 5 5 5 5 5 5 5 5 5 5 5 5 5 5 5 5 5 4 5 5 5 Average Carried 14 | 2 11 14 18 19 19 19 19 19 19 19 19 19 19 18 18 19 19 19 18 18 18 4 4 5 4 4 4 4 5 4 4 4 4 4 4 4 5 4 4 2 3 4 4 Final Capacity 20 | 8 15 15 20 20 20 20 20 20 20 20 20 20 20 20 20 20 20 20 20 20 5 5 5 5 5 5 5 5 5 5 5 5 5 5 5 5 5 5 5 5 5 5 5 Final Carried 20 | 4 14 14 20 20 20 20 20 20 20 20 20 20 20 16 20 20 20 20 19 20 5 5 5 5 5 4 5 5 5 5 4 5 4 5 4 5 5 5 5 3 5 4 4 Class Distribution -------------------- 19% | Scavenger-Skirmisher 17% | Mutant 12% | Scavenger-Gunner 12% | Skirmisher 6% | Sprinter 4% | Scavenger-Tank 4% | Botlord-Sprinter 3% | Commander-Skirmisher Dominant Class ---------------- Mutant | -10/Materials Mutant | -10/Mines Scavenger-Gunner | -9/Materials Scavenger-Gunner | -9/Mines Scavenger-Gunner | -9/Exiles Scavenger-Skirmisher | -8/Mines Scavenger-Skirmisher | -8/Materials Skirmisher | -8/Garrison Mutant | -8/Materials Skirmisher | -8/Garrison Skirmisher | -8/Materials Mutant | -8/Garrison Skirmisher | -8/Materials Mutant | -8/Garrison Scavenger-Skirmisher | -7/Factory Scavenger-Skirmisher | -7/Waste Scavenger-Skirmisher | -7/Factory Commander-Skirmisher | -7/Garrison Scavenger-Tank | -6/Factory Scavenger-Skirmisher | -6/Garrison Scavenger-Tank | -5/Factory Derelict-Tank | -5/Upper Caves Derelict-Skirmisher | -5/Upper Caves Derelict-Mutant | -5/Warlord Derelict-Mutant | -4/Proximity Caves Hacker-Sprinter | -4/Factory Scavenger-Sprinter | -4/Garrison Sprinter | -4/Factory Mutant | -4/Garrison Sprinter | -4/Factory Sprinter | -4/Garrison Sprinter | -3/Research Bothacker-Sprinter | -3/Garrison Sprinter | -3/Research Bothacker-Sprinter | -3/Garrison Sprinter | -2/Research Botlord-Sprinter | -2/Garrison Botlord-Sprinter | -2/Research Botlord-Sprinter | -2/Garrison Commander-Sprinter | -1/Access Botlord-Sprinter | -1/Garrison Botlord-Sprinter | -1/Access Mutant | -1/Command Resources | -11 -10 -10 -9 -9 -9 -8 -8 -8 -8 -8 -8 -8 -8 -8 -7 -7 -7 -7 -6 -6 -5 -5 -5 -5 -4 -4 -4 -4 -4 -4 -4 -3 -3 -3 -3 -2 -2 -2 -2 -1 -1 -1 -1 ----------- Run | Yrd Mat Min Mat Min Exi Min Mat Gar Mat Gar Mat Gar Mat Gar Fac Was Fac Gar Fac Gar Fac Upp Upp War Pro Fac Gar Fac Gar Fac Gar Res Gar Res Gar Res Gar Res Gar Acc Gar Acc Com Matter Collected 9763 | 213 794 18 777 9 . 147 145 469 46 299 116 109 347 217 42 117 25 475 60 541 674 373 576 . 64 101 266 . 338 184 25 85 115 100 245 80 305 190 405 . 354 163 154 Remotely 233 | . . . . . . . . . . . . . . . . . . . . . . . . . . . . . . . . . . . . . . . . . . 101 132 Salvage Created 17166 | 44 998 152 1679 49 . 229 607 1363 46 551 474 344 741 685 205 574 16 1828 . 1139 1587 70 483 . 133 176 191 . 338 334 99 121 . 342 184 97 246 286 170 . 224 204 157 Parts 722 | 7 43 5 100 4 . 14 37 63 6 33 24 25 39 23 13 5 2 73 . 42 68 6 31 . 6 4 4 . 9 3 3 1 . 2 1 1 3 8 2 . 4 2 6 Haulers Intercepted 15 | . 2 . 5 . . . 2 . . . . . 5 . . . . . . . . . . . . . . . . . . . . 1 . . . . . . . . . Recyclers Shooed 11 | 1 2 . 1 . . 1 . . . . 1 . 1 . . . . . . . 3 . . . . . . . . . . . . . . . . . . . . 1 . Parts Field Recycled . | . . . . . . . . . . . . . . . . . . . . . . . . . . . . . . . . . . . . . . . . . . . . Retrieved Matter . | . . . . . . . . . . . . . . . . . . . . . . . . . . . . . . . . . . . . . . . . . . . . Parts Self-Destructed 20 | . . . . . . . . . . . . . . . . . . . . . . . 20 . . . . . . . . . . . . . . . . . . . . Prevented 19 | . . . . . . . . . . . . . . . . . . . . . . 6 11 . 2 . . . . . . . . . . . . . . . . . . Parts Restored . | . . . . . . . . . . . . . . . . . . . . . . . . . . . . . . . . . . . . . . . . . . . . Kills | -11 -10 -10 -9 -9 -9 -8 -8 -8 -8 -8 -8 -8 -8 -8 -7 -7 -7 -7 -6 -6 -5 -5 -5 -5 -4 -4 -4 -4 -4 -4 -4 -3 -3 -3 -3 -2 -2 -2 -2 -1 -1 -1 -1 ------- Run | Yrd Mat Min Mat Min Exi Min Mat Gar Mat Gar Mat Gar Mat Gar Fac Was Fac Gar Fac Gar Fac Upp Upp War Pro Fac Gar Fac Gar Fac Gar Res Gar Res Gar Res Gar Res Gar Acc Gar Acc Com Combat Hostiles Destroyed 263 | . 19 . 27 . . 7 9 37 1 17 11 7 14 15 3 . . 21 . 24 28 1 8 . 5 . 2 . 2 . . . . 1 1 . . 1 1 . . 1 . Melee 36 | . 1 . . . . . . 6 1 3 . 7 . 5 1 . . 6 . . 3 . . . . . 1 . 1 . . . . . . . . 1 . . . . . Guns 102 | . 7 . 24 . . 5 5 11 . 7 6 . 10 5 . . . 5 . 9 5 1 2 . . . . . . . . . . . . . . . . . . . . Cannons 47 | . 7 . 2 . . . 4 9 . . . . . . 1 . . 5 . 7 6 . 6 . . . . . . . . . . . . . . . . . . . . AOE 57 | . . . . . . 2 . 11 . 7 5 . 3 4 . . . 4 . 6 10 . . . 5 . . . . . . . . . . . . . . . . . . Classes Destroyed 21 | 1 8 . 2 . . . . 4 . . 1 . 1 . . . . 1 . 1 2 . . . . . . . . . . . . . . . . . . . . . . Worker 16 | . 2 . 2 2 . 1 . . . . . . . . . . 1 . . . 1 . . . . 1 . . . 3 . . . 1 . . . . . . . . 2 Builder 11 | . 1 . 1 . . . 2 . . . . . . . . . . . . . 5 . . . . . . . . 1 . . . . . . . 1 . . . . . Tunneler 6 | 2 1 . 1 . . . . . . . . . . . . . . . . . 1 . . . . 1 . . . . . . . . . . . . . . . . . Hauler 15 | . 2 . 5 . . . 2 . . . . . 5 . . . . . . . . . . . . . . . . . . . . 1 . . . . . . . . . Recycler 22 | . 4 2 4 . . . . . . . 1 . . . . . . . . . 1 . . . . 1 . . . 2 . 1 . 1 . 1 . 2 . . . 1 1 Mechanic 1 | . . . . . . . . . . . . . . . . . . . . . 1 . . . . . . . . . . . . . . . . . . . . . . Operator 7 | . 1 . 3 . . . . . . . . . . . 2 . . 1 . . . . . . . . . . . . . . . . . . . . . . . . . Watcher 14 | . 1 . 4 . . . 1 3 . . . . 3 . . . . . . . 1 . . . . 1 . . . . . . . . . . . . . . . . . Swarmer 67 | . 6 . 3 . . 4 . 14 . 7 . . 7 . . . . 6 . 4 5 . 5 . 5 . . . 1 . . . . . . . . . . . . . . Saboteur 1 | . . . . . . . . . . . . . . . . . . . . . 1 . . . . . . . . . . . . . . . . . . . . . . Grunt 95 | . 13 . 17 . . 3 6 6 . 5 5 2 5 6 . . . 5 . 6 9 . . . . . . . 5 . . . . . . . . . 2 . . . . Brawler 6 | . . . 1 . . . . 3 . . 1 . . . . . . 1 . . . . . . . . . . . . . . . . . . . . . . . . . Duelist 7 | . . . . . . . . 1 . . 1 . . 1 . . . 1 . 1 2 . . . . . . . . . . . . . . . . . . . . . . Protector 1 | . . . . . . . . . . . 1 . . . . . . . . . . . . . . . . . . . . . . . . . . . . . . . . Sentry 36 | . . . 6 . . . 3 7 . 4 3 . 1 . 1 . . 1 . 6 4 . . . . . . . . . . . . . . . . . . . . . . Demolisher 1 | . . . . . . . . 1 . . . . . . . . . . . . . . . . . . . . . . . . . . . . . . . . . . . Specialist 9 | . . . . . . . . . . . . . . . . . . 5 . 4 . . . . . . . . . . . . . . . . . . . . . . . Hunter 7 | . . . . . . . . 2 . . . 1 . . . . . . . . . 1 . . . . 2 . . . . . . . 1 . . . . . . . . Programmer 36 | . . . . . . . . 3 1 1 . 4 . 8 2 . . 3 . 2 7 . 2 . . . . . . . . . . 1 . . . 1 . . . 1 . Heavy 1 | . . . . . . . . . . . . . 1 . . . . . . . . . . . . . . . . . . . . . . . . . . . . . . Behemoth 3 | . . . . . . . . . . . . . . . . . . . . 1 1 . 1 . . . . . . . . . . . . . . . . . . . . Wasp 1 | . . . . . . . . . . . . . . . . 1 . . . . . . . . . . . . . . . . . . . . . . . . . . . Savage 1 | . . . . . . . . . . . . . . . . . . 1 . . . . . . . . . . . . . . . . . . . . . . . . . Best Kill Streak 10 | 2 5 1 5 1 . 5 6 9 1 5 6 2 4 6 2 . 1 10 . 5 7 1 5 . 5 1 2 . 2 3 . 1 . 3 1 1 . 2 1 . . 1 2 Combat Bots Only 10 | . 3 . 5 . . 4 3 9 1 5 6 2 4 6 2 . . 10 . 5 5 1 5 . 5 . 2 . 2 . . . . 1 1 . . 1 1 . . 1 . Max Kills in Single Turn 3 | 1 2 1 2 1 . 2 1 2 1 3 3 1 2 2 1 1 1 2 . 3 3 1 1 . 3 1 1 . 1 1 . 1 . 1 1 1 . 1 1 . . 1 1 Gunslinging 1 | . . . 1 . . . . . . 1 . . . . . . . . . . . . . . . . . . . . . . . . . . . . . . . . . Exploded 3 | . . . . . . 2 . 2 . 3 3 . 2 2 . . . 2 . 3 3 . . . 3 . . . . . . . . . . . . . . . . . . Melee 1 | . 1 . . . . . . 1 1 1 . 1 . 1 1 . . 1 . . 1 . . . . . 1 . 1 . . . . . . . . 1 . . . . . Uniques/NPCs Destroyed . | . . . . . . . . . . . . . . . . . . . . . . . . . . . . . . . . . . . . . . . . . . . . Combat | -11 -10 -10 -9 -9 -9 -8 -8 -8 -8 -8 -8 -8 -8 -8 -7 -7 -7 -7 -6 -6 -5 -5 -5 -5 -4 -4 -4 -4 -4 -4 -4 -3 -3 -3 -3 -2 -2 -2 -2 -1 -1 -1 -1 -------- Run | Yrd Mat Min Mat Min Exi Min Mat Gar Mat Gar Mat Gar Mat Gar Fac Was Fac Gar Fac Gar Fac Upp Upp War Pro Fac Gar Fac Gar Fac Gar Res Gar Res Gar Res Gar Res Gar Acc Gar Acc Com Hostile Shots Fired 2181 | . 113 . 109 . . 46 29 142 2 48 24 45 26 135 31 . 2 85 . 281 243 15 101 . 6 45 75 11 16 4 24 18 29 11 17 . 32 4 40 8 50 151 163 Missed 762 | . 30 . 38 . . 10 4 47 1 20 8 7 4 40 8 . . 16 . 79 80 5 21 . 3 13 38 5 5 2 15 8 13 6 11 . 21 2 26 2 28 82 64 Hits 1419 | . 83 . 71 . . 36 25 95 1 28 16 38 22 95 23 . 2 69 . 202 163 10 80 . 3 32 37 6 11 2 9 10 16 5 6 . 11 2 14 6 22 69 99 Melee 18 | . . . 2 . . . . 3 . . 5 . . . . . 2 . . 1 3 . . . . . . . . . . . 1 . . . . . . . . . 1 Projectile 1401 | . 83 . 69 . . 36 25 92 1 28 11 38 22 95 23 . . 69 . 201 160 10 80 . 3 32 37 6 11 2 9 10 15 5 6 . 11 2 14 6 22 69 98 AOE 9 | . . . . . . . . 3 . . . . . . . . . . . . . . . . . 5 . . . . . . . . 1 . . . . . . . . Critical Strikes 78 | . 1 . 1 . . . 2 3 1 2 3 1 1 8 . . 2 3 . 1 10 1 8 . . 5 3 1 . 1 3 . 1 . . . . 1 1 1 . 8 5 Actively Blocked 13 | . . . . . . . . . . . . . . . . . . . . 1 10 1 . . . . . . . . . . . . . . . . . . . 1 . Part Disruptions 7 | . . . . . . . . . . . . 1 . 1 . . . . . 2 1 . . . . 1 . . . . . . . . . . . . 1 . . . . Damage Taken 25088 | . 915 . 879 . . 493 387 1349 16 473 515 587 444 1513 181 . 120 1132 90 2819 3167 183 1784 . 48 887 598 138 202 43 174 294 408 131 194 . 339 45 377 117 408 1268 2370 Core 4565 | . 127 . 115 . . 74 14 226 16 28 87 35 33 77 29 . . 97 14 162 458 54 109 . 32 510 164 42 33 . 103 13 43 . 14 . 95 22 73 64 26 195 1381 Absorbed by Shields 195 | . . . . . . . . . . . . . . . . . . . . . 24 . . . . . . . . . . . . . . . . . . . 12 . 159 Reduced by Siege Mode 345 | . . . . . . . . . . . . . . . . . . . . 208 . . 137 . . . . . . . . . . . . . . . . . . . . Redirected to Shielding 145 | . . . . . . . . . . . . . . . . . . . . . 9 26 . . . . . . . . . . . . . . . . . . . 110 . Regen/Repaired (Parts) 631 | . 239 . 37 . . . . . . . . . 118 . . 13 15 46 . . . . . . . . . 163 . . . . . . . . . . . . . . . Core Remaining (%) 60 | 100 . 49 . . . 52 . . . . . . . 6 . . . 82 . 79 . . . . 34 . . . . . 25 . . . 94 . . . 86 . . . . Volleys Fired 746 | 4 84 3 90 3 . 22 26 58 2 23 18 6 36 25 6 . . 46 . 51 72 2 25 . 2 . 9 2 13 2 . . 5 2 10 4 28 9 31 6 11 9 1 Largest 4 | 2 2 2 3 3 . 3 3 3 3 3 3 1 3 3 3 . . 4 . 4 4 4 4 . 1 . 1 1 1 1 . . 1 1 1 1 1 1 1 1 1 1 1 Hottest 405 | 70 50 50 144 144 . 157 200 206 66 118 118 28 183 183 187 . . 290 . 405 346 216 273 . 46 . 7 7 7 7 . . 7 10 10 10 10 10 10 52 10 52 52 Shots Fired 1722 | 8 168 6 261 9 . 52 76 148 4 58 40 8 102 62 18 1 . 106 . 175 176 8 92 . 2 . 9 2 13 2 . . 5 2 10 4 28 9 31 6 11 9 1 Gun 1040 | 8 84 3 229 9 . 51 50 96 4 52 36 5 100 58 12 . . 49 . 75 71 6 42 . . . . . . . . . . . . . . . . . . . . Cannon 456 | . 84 3 32 . . . 26 44 . . . . . . 6 1 . 36 . 93 79 2 50 . . . . . . . . . . . . . . . . . . . . Launcher 57 | . . . . . . 1 . 8 . 4 4 . 2 4 . . . 5 . 7 17 . . . 2 . . . . . . . . . . . . . . 1 . 1 1 Special 169 | . . . . . . . . . . 2 . 3 . . . . . 16 . . 9 . . . . . 9 2 13 2 . . 5 2 10 4 28 9 31 5 11 8 . Kinetic 419 | 4 168 6 122 3 . 19 . 10 2 17 11 5 1 . . . . . . 3 2 4 42 . . . . . . . . . . . . . . . . . . . . Thermal 1065 | 4 . . 139 6 . 32 76 130 2 35 25 . 99 58 18 1 . 85 . 165 148 . 42 . . . . . . . . . . . . . . . . . . . . Explosive 55 | . . . . . . 1 . 8 . 4 4 . 2 4 . . . 5 . 7 17 . . . . . . . . . . . . . . . . . . 1 . 1 1 Electromagnetic 14 | . . . . . . . . . . . . . . . . . . . . . . 4 8 . 2 . . . . . . . . . . . . . . . . . . Robot Hit Streak 25 | 5 10 3 17 6 . 8 11 16 16 21 25 3 7 10 7 2 . 16 . 17 19 10 18 . 6 . 7 7 6 1 . . 4 3 7 11 18 13 9 4 12 6 . Robot Miss Streak 6 | 1 6 1 5 . . 3 2 3 1 2 1 1 3 2 2 . . 2 . 3 3 . 4 . . . 1 . 1 2 . . 1 . 1 . 1 3 2 1 1 1 . Penetration Max . | . . . . . . . . . . . . . . . . . . . . . . . . . . . . . . . . . . . . . . . . . . . . Secondary Targets 9 | . . . 1 . . 1 . 1 . 1 . . 2 1 . . . . . 1 1 . . . . . . . . . . . . . . . . . . . . . . Max Gunslinging Chain 1 | . . . 1 . . 1 . 1 . 1 . . 1 1 . . . . . 1 1 . . . . . . . . . . . . . . . . . . . . . . Shots Hit Robots 1347 | 6 111 5 156 4 . 35 57 100 4 40 29 16 57 62 15 16 1 97 . 114 127 8 63 . 1 16 11 2 17 12 6 6 16 10 14 5 30 10 30 4 19 11 4 Core Hits 556 | 3 34 3 68 2 . 14 20 60 1 22 28 7 26 26 7 3 1 58 . 57 83 2 17 . 6 1 1 . 1 1 . . . . . . . 1 1 . 1 . 1 Critical Kills 8 | . 1 . . . . . . . . . . . . . . . . . . . 2 1 . . . . 1 . . 1 . . . . . . . 1 . . 1 . . Critical Parts Destroyed 28 | . 4 . . . . . . . . . . . . . . . . . . 1 . 1 5 . . 2 . . 3 1 . . 1 5 . . . 1 1 . 1 2 . Critical Strikes 96 | . 6 . 11 . . . 4 3 . . 3 1 6 6 . 1 . 8 . 5 9 2 7 . . 2 1 . 3 2 . . 1 5 . . . 2 1 . 4 2 1 Burn 43 | . . . 11 . . . 4 3 . . 3 . 6 5 . . . 2 . 4 5 . . . . . . . . . . . . . . . . . . . . . . Meltdown 2 | . . . . . . . . . . . . . . . . . . . . . 2 . . . . . . . . . . . . . . . . . . . . . . Destroy 11 | . 1 . . . . . . . . . . . . . . . . . . 1 . 2 7 . . . . . . . . . . . . . . . . . . . . Blast 1 | . 1 . . . . . . . . . . . . . . . . . . . . . . . . . . . . . . . . . . . . . . . . . . Smash 27 | . 4 . . . . . . . . . . . . . . . . . . . . . . . . 2 1 . 3 2 . . 1 5 . . . 2 1 . 4 2 . Sever 11 | . . . . . . . . . . . . 1 . 1 . 1 . 6 . . 2 . . . . . . . . . . . . . . . . . . . . . . Impale 1 | . . . . . . . . . . . . . . . . . . . . . . . . . . . . . . . . . . . . . . . . . . . 1 Melee Attacks 555 | . 32 . 1 . . . 4 27 7 11 . 18 . 19 13 15 5 62 . 3 18 . 5 . . 35 7 9 16 23 14 28 39 23 18 2 31 7 18 1 21 19 4 Impact 296 | . 32 . 1 . . . . . . . . . . . . . . . . . . . . . . 30 7 9 16 18 9 16 23 20 18 2 31 7 18 1 20 18 . Slashing 210 | . . . . . . . 4 27 7 11 . 18 . 19 13 15 5 62 . 3 18 . 5 . . 1 . . . . . . . . . . . . . . 1 1 . Piercing 8 | . . . . . . . . . . . . . . . . . . . . . . . . . . 4 . . . . . . . . . . . . . . . . 4 Sneak Attacks 60 | . 2 . . . . . . . 1 . . . . . 1 . 1 4 . . . . . . . 5 1 . 5 10 1 2 9 4 . 1 1 3 3 . . 2 4 Combat Hostiles 6 | . . . . . . . . . . . . . . . . . . . . . . . . . . . 1 . . . 1 . 4 . . . . . . . . . . Follow-up Attacks 1 | . . . . . . . . . . . . . . . . . . . . . . . . . . 1 . . . . . . . . . . . . . . . . . Damage Inflicted 42934 | 82 2089 73 2624 65 . 684 1184 3288 162 1237 1058 579 1506 1962 480 700 92 4974 . 3541 5448 122 1620 . 278 1254 429 . 913 951 231 189 131 594 449 186 961 582 485 . 910 404 417 Guns 12620 | 82 595 31 2302 65 . 568 759 1406 36 649 477 20 1253 1005 165 . . 526 . 1244 1118 46 273 . . . . . . . . . . . . . . . . . . . . Cannons 7317 | . 798 36 322 . . . 425 612 . . . . . . 143 26 . 418 . 1539 1849 76 1073 . . . . . . . . . . . . . . . . . . . . Explosions 6195 | . . . . . . 116 . 917 . 385 581 . 253 342 . . . 707 . 701 1915 . . . 278 . . . . . . . . . . . . . . . . . . Melee 16779 | . 689 . . . . . . 353 126 203 . 559 . 615 172 674 92 3323 . 47 566 . 274 . . 1254 429 . 913 951 231 189 131 594 449 186 961 582 485 . 910 404 417 Ramming 23 | . 7 6 . . . . . . . . . . . . . . . . . 10 . . . . . . . . . . . . . . . . . . . . . . . Kinetic 3668 | 33 1393 67 1215 13 . 217 . 105 17 156 76 20 20 . . . . . . 16 26 21 273 . . . . . . . . . . . . . . . . . . . . Thermal 16107 | 49 . . 1409 52 . 351 1184 1913 19 493 401 . 1233 1005 308 26 . 944 . 2767 2941 . 925 . 87 . . . . . . . . . . . . . . . . . . Explosive 5917 | . . . . . . 116 . 917 . 385 581 . 253 342 . . . 707 . 701 1915 . . . . . . . . . . . . . . . . . . . . . . Electromagnetic 440 | . . . . . . . . . . . . . . . . . . . . . . 101 148 . 191 . . . . . . . . . . . . . . . . . . Impact 9205 | . 689 . . . . . . . . . . . . . . . . . . . . . . . . 1101 429 . 913 951 231 189 131 594 449 186 961 582 485 . 910 404 . Slashing 7096 | . . . . . . . . 353 126 203 . 559 . 615 172 674 92 3323 . 47 566 . 274 . . 92 . . . . . . . . . . . . . . . . . Piercing 478 | . . . . . . . . . . . . . . . . . . . . . . . . . . 61 . . . . . . . . . . . . . . . . 417 Highest Corruption 23 | . . . . . . . . 3 4 4 4 7 7 13 1 1 1 3 . 7 6 10 23 23 4 3 9 9 9 10 10 . . 1 1 . . . 1 2 2 3 1 Average Corruption 5 | . . . . . . . . 2 3 4 4 6 5 6 1 1 1 1 . 6 4 8 20 23 4 1 5 9 9 9 10 . . 1 1 . . . 1 2 2 1 1 Corruption Purged 13 | . . . . . . . . . . . . . 7 1 . . . . . . . . . . . . . . . . . . . . . . . . . . . 4 1 Corruption Blocked . | . . . . . . . . . . . . . . . . . . . . . . . . . . . . . . . . . . . . . . . . . . . . Effects 288 | . . . . . . . . 27 5 16 11 16 14 11 . 2 4 11 . 21 35 20 43 1 2 1 5 15 5 9 3 . . . 2 . . . 1 . 4 4 . Message Errors 86 | . . . . . . . . 9 3 4 3 2 6 3 . 1 1 2 . 4 12 7 12 . . . 1 7 2 3 1 . . . 1 . . . 1 . 1 . . Matter Fused 67 | . . . . . . . . 4 2 5 2 5 4 3 . . . 4 . 4 4 3 17 . 1 1 1 5 . 1 . . . . . . . . . . . 1 . Heat Flow Errors 39 | . . . . . . . . 3 . 3 1 3 2 1 . . 1 4 . 2 3 2 7 1 . . 1 1 . 1 1 . . . 1 . . . . . . 1 . Energy Discharges 33 | . . . . . . . . 6 . 3 1 2 1 1 . . 2 . . 4 4 3 1 . . . 1 . 1 1 1 . . . . . . . . . 1 . . Parts Fused 6 | . . . . . . . . . . . 1 . . 1 . . . . . . 1 1 . . . . . . . 1 . . . . . . . . . . . 1 . Data Loss (minor) 28 | . . . . . . . . 3 . 1 1 . . 2 . . . 1 . 4 4 3 1 . 1 . 1 2 1 1 . . . . . . . . . . 2 . . Data Loss (major) 6 | . . . . . . . . . . . . 1 . . . . . . . 1 2 1 . . . . . . 1 . . . . . . . . . . . . . . Misfires 8 | . . . . . . . . 1 . . . 2 . . . 1 . . . 2 1 . 1 . . . . . . . . . . . . . . . . . . . . Alerts 7 | . . . . . . . . . . . 1 1 1 . . . . . . . . . 2 . . . . . . 1 . . . . . . . . . . . 1 . Weapon Failures 8 | . . . . . . . . 1 . . 1 . . . . . . . . . 4 . 2 . . . . . . . . . . . . . . . . . . . . Overload Shots 20 | . . . . . . . . 10 1 1 . . 2 . . . . . . 1 5 . . . . . . . . . . . . . . . . . . . . . . Overflow Damage 5698 | . 199 . . . . 11 33 162 . 46 . 63 8 28 . . . 42 . . 66 . 11 . 4 551 113 . 636 630 55 119 134 594 145 156 311 464 211 . 260 344 302 Projectiles 133 | . 1 . . . . . 33 . . . . . . . . . . . . . 26 . 11 . . 6 . . 53 . . . 3 . . . . . . . . . . Explosions 270 | . . . . . . 11 . 162 . 46 . . 8 . . . . 22 . . 17 . . . 4 . . . . . . . . . . . . . . . . . . Melee 5295 | . 198 . . . . . . . . . . 63 . 28 . . . 20 . . 23 . . . . 545 113 . 583 630 55 119 131 594 145 156 311 464 211 . 260 344 302 Knockbacks 58 | . 20 . 4 . . . . . . . . . . . . . . . . . . . . . . 10 3 . 4 . . . 2 1 5 . 3 1 3 . . 2 . Impact 34 | . 5 . . . . . . . . . . . . . . . . . . . . . . . . 8 3 . 2 . . . 1 1 5 . 3 1 3 . . 2 . Kinetic 16 | . 13 . 3 . . . . . . . . . . . . . . . . . . . . . . . . . . . . . . . . . . . . . . . . Secondary 8 | . 2 . 1 . . . . . . . . . . . . . . . . . . . . . . 2 . . 2 . . . 1 . . . . . . . . . . Self-Inflicted Damage 478 | . . . . . . . . . . . 184 . . 76 . . . . . 47 171 . . . . . . . . . . . . . . . . . . . . . . Shots 16 | . . . . . . . . . . . 4 . . 3 . . . . . 3 6 . . . . . . . . . . . . . . . . . . . . . . Rammed 3 | . 1 1 . . . . . . . . . . . . . . . . . 1 . . . . . . . . . . . . . . . . . . . . . . . Targets Rammed 3 | . 1 1 . . . . . . . . . . . . . . . . . 1 . . . . . . . . . . . . . . . . . . . . . . . Kicked . | . . . . . . . . . . . . . . . . . . . . . . . . . . . . . . . . . . . . . . . . . . . . Crushed . | . . . . . . . . . . . . . . . . . . . . . . . . . . . . . . . . . . . . . . . . . . . . Highest Temperature 587 | 80 15 . 276 45 . 233 209 371 . 278 186 214 295 290 332 . 187 351 324 587 419 247 517 62 . . 137 65 . 185 97 . . . 201 . 13 . 1 . . 117 . Average Temperature 103 | 40 2 . 51 25 . 115 54 96 . 112 82 81 70 120 157 . 116 107 162 194 89 81 197 39 . . 15 33 . 95 57 . . . 124 . 7 . 1 . . 61 . Received Heat Transfer 4513 | . 423 . 381 . . 207 234 180 . 135 90 99 108 207 30 . . 243 . 465 657 . 466 . . 42 146 45 57 . 49 . 66 . 21 . 54 . 18 9 9 36 36 Effects 38 | . . . 2 . . 1 . 3 . . . . . 2 . . . . 1 16 1 1 11 . . . . . . . . . . . . . . . . . . . . Shutdowns 13 | . . . . . . . . . . . . . . . . . . . 1 6 . . 6 . . . . . . . . . . . . . . . . . . . . Energy Bleed 8 | . . . . . . 1 . 1 . . . . . . . . . . . 4 1 1 . . . . . . . . . . . . . . . . . . . . . Interference 12 | . . . 2 . . . . 2 . . . . . 2 . . . . . 1 . . 5 . . . . . . . . . . . . . . . . . . . . Matter Decay 2 | . . . . . . . . . . . . . . . . . . . . 2 . . . . . . . . . . . . . . . . . . . . . . . Damage (minor) 3 | . . . . . . . . . . . . . . . . . . . . 3 . . . . . . . . . . . . . . . . . . . . . . . Siege Activations 6 | . . . . . . . . . . . . . . . . . . . . 4 . . 2 . . . . . . . . . . . . . . . . . . . . Total Turns 137 | . . . . . . . . . . . . . . . . . . . . 65 . . 72 . . . . . . . . . . . . . . . . . . . . Longest Duration 46 | . . . . . . . . . . . . . . . . . . . . 32 . . 46 . . . . . . . . . . . . . . . . . . . . Martial Activations . | . . . . . . . . . . . . . . . . . . . . . . . . . . . . . . . . . . . . . . . . . . . . Shielding Activations . | . . . . . . . . . . . . . . . . . . . . . . . . . . . . . . . . . . . . . . . . . . . . Robots Disrupted . | . . . . . . . . . . . . . . . . . . . . . . . . . . . . . . . . . . . . . . . . . . . . Combat Hostiles . | . . . . . . . . . . . . . . . . . . . . . . . . . . . . . . . . . . . . . . . . . . . . Robots Corrupted 29 | . 4 . . . . . . . . . . . . . . . . . . . . . . . . 2 3 . 4 1 1 . . 3 2 . 3 1 1 . 2 2 . Combat Hostiles 13 | . 4 . . . . . . . . . . . . . . . . . . . . . . . . . 1 . 1 . . . . 1 1 . 1 . 1 . 2 1 . Parts Fried 46 | . 4 . . . . . . . . . . . . . . . . . . . . 1 . . 1 1 6 . 3 5 1 1 . 7 1 2 . 6 2 . 2 3 . Impact Corruptions 104 | . 10 . . . . . . . . . . . . . . . . . . . . . . . . 16 5 . 11 11 1 1 4 10 6 3 4 6 4 . 4 8 . Robots Melted 14 | . . . 1 . . . 2 . . . . . 2 1 1 . . 1 . 2 4 . . . . . . . . . . . . . . . . . . . . . . Combat Hostiles 11 | . . . 1 . . . . . . . . . 1 1 1 . . 1 . 2 4 . . . . . . . . . . . . . . . . . . . . . . Parts Melted 73 | 1 . . 4 1 . 1 2 9 . 2 . . 9 5 1 . . 1 . 17 20 . . . . . . . . . . . . . . . . . . . . . . Heat Transferred 29735 | 148 . . 4107 111 . 814 2479 3458 37 888 962 . 2714 1895 481 37 . 1665 . 4616 4261 . 962 . 100 . . . . . . . . . . . . . . . . . . Parts Sabotaged . | . . . . . . . . . . . . . . . . . . . . . . . . . . . . . . . . . . . . . . . . . . . . Parts Stolen . | . . . . . . . . . . . . . . . . . . . . . . . . . . . . . . . . . . . . . . . . . . . . Parts Stripped . | . . . . . . . . . . . . . . . . . . . . . . . . . . . . . . . . . . . . . . . . . . . . Power Chain Reactions 2 | . . . . . . . . . . . . . . . . . . . . . . . . . 2 . . . . . . . . . . . . . . . . . . Alert | -11 -10 -10 -9 -9 -9 -8 -8 -8 -8 -8 -8 -8 -8 -8 -7 -7 -7 -7 -6 -6 -5 -5 -5 -5 -4 -4 -4 -4 -4 -4 -4 -3 -3 -3 -3 -2 -2 -2 -2 -1 -1 -1 -1 ------- Run | Yrd Mat Min Mat Min Exi Min Mat Gar Mat Gar Mat Gar Mat Gar Fac Was Fac Gar Fac Gar Fac Upp Upp War Pro Fac Gar Fac Gar Fac Gar Res Gar Res Gar Res Gar Res Gar Acc Gar Acc Com Maximum Alert Level 5 | . 1 . 1 . . . . 4 2 3 2 2 1 1 . . . 5 4 4 4 . . . . . 2 . . . 1 1 2 1 2 1 3 2 3 2 2 1 1 Low Security (%) 49 | 100 95 100 82 100 . 100 100 21 . . . . 30 62 100 100 100 16 . . . . . . . 100 53 100 100 100 87 45 29 . 7 . 8 . 1 . . . 95 Level 1 17 | . 4 . 17 . . . . 21 . 3 . 16 69 37 . . . 11 . . . . . . . . 30 . . . 12 54 37 100 87 100 37 34 50 . 3 100 4 Level 2 14 | . . . . . . . . 8 100 37 100 83 . . . . . 1 . . 67 . . . . . 15 . . . . . 33 . 4 . 28 65 24 100 96 . . Level 3 9 | . . . . . . . . 39 . 58 . . . . . . . 1 98 38 27 . . . . . . . . . . . . . . . 24 . 23 . . . . Level 4 6 | . . . . . . . . 8 . . . . . . . . . 38 1 61 4 . . . . . . . . . . . . . . . . . . . . . . Level 5 2 | . . . . . . . . . . . . . . . . . . 31 . . . . . . . . . . . . . . . . . . . . . . . . . High Security . | . . . . . . . . . . . . . . . . . . . . . . . . . . . . . . . . . . . . . . . . . . . . Max Security . | . . . . . . . . . . . . . . . . . . . . . . . . . . . . . . . . . . . . . . . . . . . . Peak Influence 2018 | 10 209 75 374 154 . 143 95 1225 596 964 569 576 308 344 180 17 132 2018 1107 1531 1216 . . . . 34 445 196 156 144 312 239 522 309 418 246 905 552 776 564 583 352 200 Initial 1059 | . . 75 17 134 . . 18 54 596 328 469 354 280 31 180 17 . 36 1059 767 803 . . . . 18 . 196 53 60 104 175 159 270 188 234 179 508 195 465 421 334 188 Average 376 | . 89 64 108 26 . 45 32 581 539 739 502 477 214 183 40 . 54 1150 1044 1156 702 . . . . 7 218 122 142 75 144 202 308 266 313 234 489 448 483 517 484 295 114 Influence Increases 16477 | 10 665 10 951 26 . 270 335 1221 40 656 324 242 663 423 132 . 303 2172 98 1034 1169 45 210 . 110 91 525 128 103 219 218 188 573 241 320 35 966 98 741 142 357 321 102 Destroy 0b10 Robot/C 7160 | . 380 . 560 . . 180 180 760 20 380 200 140 380 300 60 . 100 800 20 600 560 20 160 . 100 . 200 . 40 . 40 . 240 40 60 . 280 20 240 40 20 40 . Destroy 0b10 Robot/NC 570 | 10 60 10 100 10 . 5 25 15 . . 10 . 50 . 10 . 10 40 . . 50 . 5 . . 20 10 . . 30 5 5 . 15 5 5 15 15 . . 15 5 15 Destroy Leader 1106 | . 86 . 168 . . 40 56 30 10 10 60 10 120 50 30 . 30 30 10 30 122 10 30 . 10 2 20 . . . 10 . 30 12 10 . 20 10 40 . . 10 . Allied During Kill 1693 | . . . 3 1 . 6 . 5 . 15 . . 41 . . . 140 849 22 85 4 . . . . . 32 . . . 17 . 110 1 15 . 112 . 231 . 2 2 . Trap Triggered on 0b10 10 | . . . . . . . . . . . . . 10 . . . . . . . . . . . . . . . . . . . . . . . . . . . . . . Successful Hack 516 | . 13 . 70 . . . 16 30 5 . 14 14 9 . 21 . 5 26 . . 14 . . . . 8 . 35 . 19 . 65 14 14 42 12 14 44 . . . . 12 Disable Machine 540 | . 15 . 30 15 . 15 . . . 45 15 . 45 . . . 15 60 15 15 105 . . . . 15 15 . . 15 . 15 . . . . . . 15 15 45 15 . Anti-Garrison Action 1900 | . . . . . . . . 250 . 50 . 50 . . . . . 250 . 200 150 . . . . . 100 . 50 . 100 . 100 . 150 . 200 . 150 . 100 . . Destroy Structure 1317 | . 6 . 5 . . 9 13 131 5 51 10 13 8 28 11 . 3 117 31 104 104 . . . . 16 43 18 13 20 16 28 79 24 38 3 100 9 65 87 25 84 . Partial Spotted 330 | . . . . . . . 15 . . . . . . . . . . . . . . . . . . 30 30 45 . 30 . 15 . 75 . 15 30 . . . . 15 30 Lose Combat Pursuer 1335 | . 105 . 15 . . 15 30 . . 105 15 15 . 45 . . . . . . 60 15 15 . . . 75 30 . 105 30 60 . 60 . . 195 . . . 150 150 45 Influence Decreases 16477 | 10 472 158 650 372 . 223 298 80 759 198 743 211 1190 128 426 50 251 206 1019 600 1484 799 603 69 80 121 150 427 63 186 55 287 304 472 153 214 300 742 226 391 326 584 397 Entered New Map 7299 | . . 118 28 212 . . 29 30 629 178 495 191 296 18 164 33 . 16 959 330 728 451 89 69 . 12 . 179 23 56 45 137 54 212 63 184 60 397 66 311 106 224 107 Time Decay 5744 | 10 448 40 612 160 . 188 259 . 130 . 238 . 534 . 262 17 181 . 60 . 546 318 404 . 80 109 . 238 . 110 . 120 . 180 . 30 . 60 . 50 . 190 170 Lost Part 1164 | . 24 . 10 . . 20 10 30 . . 10 20 . 110 . . 10 20 . 90 210 30 110 . . . 70 10 . 10 10 . 30 . 10 . 10 . 30 10 40 110 120 Lost Ally 1695 | . . . . . . 15 . 20 . 20 . . 60 . . . 60 170 . 180 . . . . . . 80 . 40 10 . 30 220 80 80 . 230 10 130 20 180 60 . Purge Threat 575 | . . . . . . . . . . . . . 300 . . . . . . . . . . . . . . . . . . . . . . . . 275 . . . . . Squads Dispatched 61 | . 5 . 5 1 . . 3 . 1 . 4 . 3 . 3 . 1 . . . 11 . . . . 3 . 4 . 3 . 3 . 3 . 1 . . . 2 . 2 3 Investigation 18 | . 4 . 1 . . . 1 . . . . . . . . . . . . . . . . . . 2 . 3 . 2 . 2 . . . 1 . . . 1 . . 1 Extermination 15 | . . . . . . . . . . . . . . . 2 . 1 . . . 3 . . . . 1 . 1 . 1 . 1 . 1 . . . . . . . 2 2 Reinforcement 15 | . 1 . 4 . . . 1 . 1 . 1 . 2 . 1 . . . . . 1 . . . . . . . . . . . . 2 . . . . . 1 . . . Assault 6 | . . . . 1 . . . . . . 1 . . . . . . . . . 4 . . . . . . . . . . . . . . . . . . . . . . Garrison 7 | . . . . . . . 1 . . . 2 . 1 . . . . . . . 3 . . . . . . . . . . . . . . . . . . . . . . Intercept . | . . . . . . . . . . . . . . . . . . . . . . . . . . . . . . . . . . . . . . . . . . . . Searches Triggered . | . . . . . . . . . . . . . . . . . . . . . . . . . . . . . . . . . . . . . . . . . . . . Construction Impeded 2 | . . . 1 . . . . . . . . . . . . . . . . . 1 . . . . . . . . . . . . . . . . . . . . . . Haulers Reinforced 2 | . . . . . . . . . . . . . . . . . . . . . . . . . . . . . . . . . . 1 . . . . . 1 . . . Active Scanning Responses . | . . . . . . . . . . . . . . . . . . . . . . . . . . . . . . . . . . . . . . . . . . . . Cargo Convoy Interrupts . | . . . . . . . . . . . . . . . . . . . . . . . . . . . . . . . . . . . . . . . . . . . . Stealth | -11 -10 -10 -9 -9 -9 -8 -8 -8 -8 -8 -8 -8 -8 -8 -7 -7 -7 -7 -6 -6 -5 -5 -5 -5 -4 -4 -4 -4 -4 -4 -4 -3 -3 -3 -3 -2 -2 -2 -2 -1 -1 -1 -1 --------- Run | Yrd Mat Min Mat Min Exi Min Mat Gar Mat Gar Mat Gar Mat Gar Fac Was Fac Gar Fac Gar Fac Upp Upp War Pro Fac Gar Fac Gar Fac Gar Res Gar Res Gar Res Gar Res Gar Acc Gar Acc Com Distress Signals 20 | . 2 . 1 . . . . 3 . . . . 3 . 1 . . . . . . . . . . 2 . . . . . 1 . 1 . . . . . . . 3 3 Communications Jammed 11 | . . . . . . . . . . . . . . . . . . . . . . . . . . . . . . . . . . 7 . . . 4 . . . . . Distress Signals 10 | . . . . . . . . . . . . . . . . . . . . . . . . . . . . . . . . . . 7 . . . 3 . . . . . Times Spotted 624 | . 38 . 39 . . 8 14 46 4 20 11 8 26 18 7 . 3 39 1 29 41 2 9 . 5 5 26 3 5 9 10 11 18 16 6 1 30 5 27 3 29 33 19 Peak Tracking Total 17 | . 5 . 4 . . 4 3 7 1 6 5 3 4 7 3 . 3 11 1 8 6 1 5 . 5 3 14 2 3 8 10 8 7 9 2 1 15 3 8 2 16 17 14 Tactical Retreats 47 | . 4 . 1 . . 1 1 . . 2 1 1 . 1 . . . . . . 2 1 1 . . . 2 2 . 3 2 1 . 4 . . 5 . . . 2 7 3 ECM-based Alert Blocks 1 | . . . . . . . . . . . . . . . . . . . . . . . . . . . . . . . . . . . . . . . . . . . 1 Traps | -11 -10 -10 -9 -9 -9 -8 -8 -8 -8 -8 -8 -8 -8 -8 -7 -7 -7 -7 -6 -6 -5 -5 -5 -5 -4 -4 -4 -4 -4 -4 -4 -3 -3 -3 -3 -2 -2 -2 -2 -1 -1 -1 -1 ------- Run | Yrd Mat Min Mat Min Exi Min Mat Gar Mat Gar Mat Gar Mat Gar Fac Was Fac Gar Fac Gar Fac Upp Upp War Pro Fac Gar Fac Gar Fac Gar Res Gar Res Gar Res Gar Res Gar Acc Gar Acc Com Traps Triggered 67 | . 5 . 1 . . . 1 3 . 1 . 5 1 . 1 . 1 . . 6 1 . . . . 3 7 . . . 2 1 5 5 3 . 4 . 1 . 4 1 5 Indirectly . | . . . . . . . . . . . . . . . . . . . . . . . . . . . . . . . . . . . . . . . . . . . . Trap Hack Attempts . | . . . . . . . . . . . . . . . . . . . . . . . . . . . . . . . . . . . . . . . . . . . . Triggered . | . . . . . . . . . . . . . . . . . . . . . . . . . . . . . . . . . . . . . . . . . . . . Disarmed . | . . . . . . . . . . . . . . . . . . . . . . . . . . . . . . . . . . . . . . . . . . . . Reprogrammed . | . . . . . . . . . . . . . . . . . . . . . . . . . . . . . . . . . . . . . . . . . . . . Reused 1 | . . . . . . . . . . . . . 1 . . . . . . . . . . . . . . . . . . . . . . . . . . . . . . Traps Extracted . | . . . . . . . . . . . . . . . . . . . . . . . . . . . . . . . . . . . . . . . . . . . . Installed 1 | . . . . . . . . . . . . . 1 . . . . . . . . . . . . . . . . . . . . . . . . . . . . . . Triggered 1 | . . . . . . . . . . . . . 1 . . . . . . . . . . . . . . . . . . . . . . . . . . . . . . Most Traps Carried 2 | . . . . . . . . . . 2 2 2 2 . . . . . . . . . . . . . . . . . . . . . . . . . . . . . . Machines | -11 -10 -10 -9 -9 -9 -8 -8 -8 -8 -8 -8 -8 -8 -8 -7 -7 -7 -7 -6 -6 -5 -5 -5 -5 -4 -4 -4 -4 -4 -4 -4 -3 -3 -3 -3 -2 -2 -2 -2 -1 -1 -1 -1 ---------- Run | Yrd Mat Min Mat Min Exi Min Mat Gar Mat Gar Mat Gar Mat Gar Fac Was Fac Gar Fac Gar Fac Upp Upp War Pro Fac Gar Fac Gar Fac Gar Res Gar Res Gar Res Gar Res Gar Acc Gar Acc Com Machines Disabled 69 | . 2 . 2 1 . 1 . 3 . 4 1 1 3 . . . 1 9 1 4 8 . . . . 1 3 . 1 1 2 1 2 . 3 . 4 . 3 1 5 1 . Max in Single Turn 1 | . 1 . 1 1 . 1 . 1 . 1 1 1 1 . . . 1 1 . 1 1 . . . . 1 1 . 1 1 1 1 1 . 1 . 1 . 1 1 1 1 . Garrison Access 2 | . . . . . . . . . . . . . . . 1 . . . . . 1 . . . . . . . . . . . . . . . . . . . . . . Garrison Relay 28 | . . . . . . . . 1 . 1 . 1 . . . . . 3 . 3 . . . . . . 2 . 1 . 2 . 3 . 3 . 4 . 2 . 2 . . Phase Generator 1 | . . . . . . . . 1 . . . . . . . . . . . . . . . . . . . . . . . . . . . . . . . . . . . Energy Cycler 2 | . . . . . . . . . . . . . . . . . . . . . . . . . . . . . . . . . . . . . . . . 1 . 1 . Machines Repaired . | . . . . . . . . . . . . . . . . . . . . . . . . . . . . . . . . . . . . . . . . . . . . Machines Dismantled 2 | . . . . . . . . 1 . 1 . . . . . . . . . . . . . . . . . . . . . . . . . . . . . . . . . Machines Sabotaged . | . . . . . . . . . . . . . . . . . . . . . . . . . . . . . . . . . . . . . . . . . . . . Overloaded Fab Kills . | . . . . . . . . . . . . . . . . . . . . . . . . . . . . . . . . . . . . . . . . . . . . Hacking | -11 -10 -10 -9 -9 -9 -8 -8 -8 -8 -8 -8 -8 -8 -8 -7 -7 -7 -7 -6 -6 -5 -5 -5 -5 -4 -4 -4 -4 -4 -4 -4 -3 -3 -3 -3 -2 -2 -2 -2 -1 -1 -1 -1 --------- Run | Yrd Mat Min Mat Min Exi Min Mat Gar Mat Gar Mat Gar Mat Gar Fac Was Fac Gar Fac Gar Fac Upp Upp War Pro Fac Gar Fac Gar Fac Gar Res Gar Res Gar Res Gar Res Gar Acc Gar Acc Com Machines Accessed 134 | . 8 . 11 . 3 . 4 5 2 1 5 2 11 1 6 . 4 2 1 . 3 2 1 . . 6 1 8 1 7 . 9 2 4 2 7 1 4 2 5 1 . 2 Terminals 75 | . 6 . 6 . . . 2 5 1 1 4 2 7 1 2 . 2 2 . . . . . . . 3 1 2 1 3 . 5 2 2 2 5 1 1 2 2 1 . 1 Fabricators 11 | . . . . . . . . . . . . . . . 2 . . . . . 1 . . . . 2 . 1 . 1 . 2 . 1 . . . . . 1 . . . Repair Stations 9 | . 1 . 1 . . . . . . . . . 1 . . . . . . . 1 . . . . . . 2 . . . . . . . 1 . 1 . . . . 1 Recycling Units 7 | . 1 . 2 . . . . . . . . . 1 . 1 . . . . . 1 . . . . . . . . 1 . . . . . . . . . . . . . Scanalyzers 11 | . . . 2 . . . 1 . . . . . 1 . . . 1 . . . . . . . . . . 2 . 1 . 1 . . . . . 1 . 1 . . . Garrison Access 15 | . . . . . . . 1 . 1 . 1 . 1 . 1 . 1 . 1 . . . . . . 1 . 1 . 1 . 1 . 1 . 1 . 1 . 1 . . . Total Hacks 337 | . 24 . 47 . 6 . 13 7 5 2 13 4 30 2 11 . 6 4 1 . 9 8 1 . . 31 2 20 3 17 . 22 5 5 4 11 2 8 3 6 1 . 4 Successful 178 | . 13 . 33 . 6 . 9 3 3 . 11 1 15 . 6 . 2 2 1 . 3 8 1 . . 19 . 10 . 8 . 7 2 3 3 2 1 4 . 1 . . 1 Failed 156 | . 11 . 13 . . . 4 4 2 2 2 3 15 2 5 . 4 2 . . 6 . . . . 12 2 10 3 8 . 14 3 2 1 9 1 4 3 5 1 . 3 Catastrophic 37 | . 2 . 1 . . . . 1 . . . . 2 . . . 3 1 . . 1 . . . . 3 1 3 . 2 . 7 1 1 . 2 1 . 2 1 1 . 1 Database Lockouts 3 | . . . 1 . . . . . . . . . . . . . . . . . . . . . . . . . . 1 . 1 . . . . . . . . . . . Manual 119 | . 18 . 19 . 1 . 6 . 1 . 9 . 15 . 3 . 1 1 . . 5 . . . . 16 . 4 . 2 . 6 3 . 2 4 1 . . 2 . . . Terminals 190 | . 18 . 24 . . . 10 7 3 2 12 4 16 2 3 . 4 4 . . . . . . . 23 2 5 3 6 . 9 5 2 4 8 2 3 3 3 1 . 2 Fabricators 27 | . . . . . . . . . . . . . . . 4 . . . . . 2 . . . . 5 . 3 . 3 . 7 . 2 . . . . . 1 . . . Repair Stations 24 | . 4 . 2 . . . . . . . . . 4 . . . . . . . 2 . . . . . . 7 . . . . . . . 2 . 1 . . . . 2 Recycling Units 19 | . 2 . 4 . . . . . . . . . 2 . 3 . . . . . 5 . . . . . . . . 3 . . . . . . . . . . . . . Scanalyzers 43 | . . . 17 . . . 2 . . . . . 6 . . . 1 . . . . . . . . . . 4 . 4 . 5 . . . . . 3 . 1 . . . Garrison Access 19 | . . . . . . . 1 . 2 . 1 . 2 . 1 . 1 . 1 . . . . . . 3 . 1 . 1 . 1 . 1 . 1 . 1 . 1 . . . Terminal Hacks 57 | . . . 5 . 6 . 2 3 1 . 3 1 2 . 1 . 1 2 . . . 8 1 . . 11 . 1 . 1 . 1 2 . 2 . 1 2 . . . . . Record 12 | . . . . . 5 . . . . . . . . . . . . . . . . 7 . . . . . . . . . . . . . . . . . . . . . Part Schematic 3 | . . . . . . . . . . . . . . . . . . . . . . . . . . 3 . . . . . . . . . . . . . . . . . Prototype ID Bank 6 | . . . 1 . . . 1 . . . 1 . . . 1 . 1 . . . . . . . . . . . . . . . . . . . . 1 . . . . . Open Door 2 | . . . . . . . . . . . . . . . . . . . . . . 1 1 . . . . . . . . . . . . . . . . . . . . Level Access Points 2 | . . . 1 . . . . . . . . . . . . . . . . . . . . . . . . . . . . . . . . . . 1 . . . . . Branch Access Points 4 | . . . 1 . . . . . . . 1 . . . . . . . . . . . . . . 1 . . . 1 . . . . . . . . . . . . . Emergency Access Points 6 | . . . . . . . . 1 . . 1 . . . . . . 1 . . . . . . . . . . . . . . 1 . 1 . 1 . . . . . . Terminal Index 3 | . . . 1 . . . 1 . . . . . . . . . . . . . . . . . . 1 . . . . . . . . . . . . . . . . . Fabricator Index 2 | . . . . . . . . . . . . . . . . . . . . . . . . . . 1 . . . . . 1 . . . . . . . . . . . Garrison Index 1 | . . . . . . . . . . . . . . . . . . . . . . . . . . 1 . . . . . . . . . . . . . . . . . Alert Level 1 | . . . . . . . . . . . . . . . . . . . . . . . . . . . . 1 . . . . . . . . . . . . . . . Unreport Threat 2 | . . . . . . . . . . . . . 2 . . . . . . . . . . . . . . . . . . . . . . . . . . . . . . Recall Investigation 2 | . . . . . . . . . . . . . . . . . . . . . . . . . . 2 . . . . . . . . . . . . . . . . . Registered Components 1 | . . . 1 . . . . . . . . . . . . . . . . . . . . . . . . . . . . . . . . . . . . . . . . Registered Prototypes 1 | . . . . . . . . . . . . . . . . . . . . . . . . . . 1 . . . . . . . . . . . . . . . . . Zone Layout 2 | . . . . . . . . . 1 . . . . . . . . . . . . . . . . 1 . . . . . . . . . . . . . . . . . Garrison Registry 3 | . . . . . . . . 1 . . . 1 . . . . . . . . . . . . . . . . . . . . . . 1 . . . . . . . . Patrol Navigation 2 | . . . . . . . . . . . . . . . . . . 1 . . . . . . . . . . . . . . 1 . . . . . . . . . . Security Stations 1 | . . . . . . . . 1 . . . . . . . . . . . . . . . . . . . . . . . . . . . . . . . . . . . Proto ID Catalog 1 | . . . . . 1 . . . . . . . . . . . . . . . . . . . . . . . . . . . . . . . . . . . . . . Fabricator Hacks 11 | . . . . . . . . . . . . . . . 1 . . . . . 1 . . . . 4 . . . 1 . 2 . 2 . . . . . . . . . Network Status 2 | . . . . . . . . . . . . . . . 1 . . . . . . . . . . . . . . . . . . 1 . . . . . . . . . Load Schematic 4 | . . . . . . . . . . . . . . . . . . . . . . . . . . 2 . . . 1 . 1 . . . . . . . . . . . Build 5 | . . . . . . . . . . . . . . . . . . . . . 1 . . . . 2 . . . . . 1 . 1 . . . . . . . . . Repair Station Hacks 16 | . 4 . 2 . . . . . . . . . 3 . . . . . . . . . . . . . . 6 . . . . . . . . . . . . . . 1 Scan Component 9 | . 2 . 1 . . . . . . . . . 2 . . . . . . . . . . . . . . 3 . . . . . . . . . . . . . . 1 Repair 7 | . 2 . 1 . . . . . . . . . 1 . . . . . . . . . . . . . . 3 . . . . . . . . . . . . . . . Recycling Unit Hacks 7 | . 2 . . . . . . . . . . . 1 . . . . . . . 1 . . . . . . . . 3 . . . . . . . . . . . . . Retrieve Matter 3 | . 1 . . . . . . . . . . . . . . . . . . . . . . . . . . . . 2 . . . . . . . . . . . . . Retrieve Components 4 | . 1 . . . . . . . . . . . 1 . . . . . . . 1 . . . . . . . . 1 . . . . . . . . . . . . . Scanalyzer 27 | . . . 15 . . . 2 . . . . . 4 . . . . . . . . . . . . . . 2 . 1 . 2 . . . . . 1 . . . . . Insert Component 8 | . . . 7 . . . . . . . . . 1 . . . . . . . . . . . . . . . . . . . . . . . . . . . . . . Analyze 6 | . . . 5 . . . . . . . . . 1 . . . . . . . . . . . . . . . . . . . . . . . . . . . . . . Retrieve Study 13 | . . . 3 . . . 2 . . . . . 2 . . . . . . . . . . . . . . 2 . 1 . 2 . . . . . 1 . . . . . Garrison Access Hacks 16 | . . . . . . . 1 . 1 . 1 . 2 . 1 . 1 . 1 . . . . . . 1 . 1 . 1 . 1 . 1 . 1 . 1 . 1 . . . Unlock Access 14 | . . . . . . . 1 . 1 . 1 . 1 . . . 1 . 1 . . . . . . 1 . 1 . 1 . 1 . 1 . 1 . 1 . 1 . . . Seal Access 1 | . . . . . . . . . . . . . . . 1 . . . . . . . . . . . . . . . . . . . . . . . . . . . . Coupler Status 1 | . . . . . . . . . . . . . 1 . . . . . . . . . . . . . . . . . . . . . . . . . . . . . . Unauthorized Hacks 43 | . 6 . 11 . . . 4 . 1 . 7 . 3 . 3 . . . . . 1 . . . . 3 . . . 1 . 1 . . 1 1 . . . . . . . Terminals 35 | . 6 . 9 . . . 4 . . . 7 . 2 . . . . . . . . . . . . 3 . . . 1 . 1 . . 1 1 . . . . . . . Assimilate 1 | . . . . . . . . . . . . . . . . . . . . . . . . . . . . . . 1 . . . . . . . . . . . . . Botnet 18 | . 2 . 4 . . . 2 . . . 4 . 1 . . . . . . . . . . . . 2 . . . . . 1 . . 1 1 . . . . . . . Operators 1 | . . . . . . . . . . . . . . . . . . . . . . . . . . 1 . . . . . . . . . . . . . . . . . Skim 15 | . 4 . 5 . . . 2 . . . 3 . 1 . . . . . . . . . . . . . . . . . . . . . . . . . . . . . . Fabricators 3 | . . . . . . . . . . . . . . . 3 . . . . . . . . . . . . . . . . . . . . . . . . . . . . Fabnet 2 | . . . . . . . . . . . . . . . 2 . . . . . . . . . . . . . . . . . . . . . . . . . . . . Haulers 1 | . . . . . . . . . . . . . . . 1 . . . . . . . . . . . . . . . . . . . . . . . . . . . . Repair Stations . | . . . . . . . . . . . . . . . . . . . . . . . . . . . . . . . . . . . . . . . . . . . . Recycling Units 4 | . . . 2 . . . . . . . . . 1 . . . . . . . 1 . . . . . . . . . . . . . . . . . . . . . . Reject 4 | . . . 2 . . . . . . . . . 1 . . . . . . . 1 . . . . . . . . . . . . . . . . . . . . . . Scanalyzers . | . . . . . . . . . . . . . . . . . . . . . . . . . . . . . . . . . . . . . . . . . . . . Garrison Access 1 | . . . . . . . . . 1 . . . . . . . . . . . . . . . . . . . . . . . . . . . . . . . . . . Restock 1 | . . . . . . . . . 1 . . . . . . . . . . . . . . . . . . . . . . . . . . . . . . . . . . Data Cores Recovered 2 | . . . . . . . . . . . . . . . 1 . 1 . . . . . . . . . . . . . . . . . . . . . . . . . . Used 1 | . . . . . . . . . . . . . . . 1 . . . . . . . . . . . . . . . . . . . . . . . . . . . . Hacking Detections 116 | . 8 . 10 . . . 3 5 2 1 4 1 10 1 5 . 4 2 1 . 3 . . . . 6 1 6 1 7 . 9 2 3 2 6 1 3 2 4 1 . 2 Full Trace Events 13 | . 1 . . . . . . 1 . . . . . . . . . . . . . . . . . 2 . 2 . 2 . 2 . . . 1 . . 1 . . . 1 Feedback Events . | . . . . . . . . . . . . . . . . . . . . . . . . . . . . . . . . . . . . . . . . . . . . Feedback Blocked . | . . . . . . . . . . . . . . . . . . . . . . . . . . . . . . . . . . . . . . . . . . . . Robot Schematics Acquired . | . . . . . . . . . . . . . . . . . . . . . . . . . . . . . . . . . . . . . . . . . . . . Robots Built . | . . . . . . . . . . . . . . . . . . . . . . . . . . . . . . . . . . . . . . . . . . . . Authchips . | . . . . . . . . . . . . . . . . . . . . . . . . . . . . . . . . . . . . . . . . . . . . Time . | . . . . . . . . . . . . . . . . . . . . . . . . . . . . . . . . . . . . . . . . . . . . Total Robot Build Rating . | . . . . . . . . . . . . . . . . . . . . . . . . . . . . . . . . . . . . . . . . . . . . Part Schematics Acquired 9 | . . . 5 . . . . . . . . . 1 . . . . . . . . . . . . 3 . . . . . . . . . . . . . . . . . Parts Built 8 | . . . . . . . . . . . . . . . . . . . . . 1 . . . . 3 . . . . . 2 . 2 . . . . . . . . . Authchips . | . . . . . . . . . . . . . . . . . . . . . . . . . . . . . . . . . . . . . . . . . . . . Time 337 | . . . . . . . . . . . . . . . . . . . . . 58 . . . . 179 . . . . . 31 . 69 . . . . . . . . . Total Part Build Rating 51 | . . . . . . . . . . . . . . . . . . . . . 7 . . . . 16 . . . . . 10 . 18 . . . . . . . . . Part Studies Acquired 13 | . . . 3 . . . 2 . . . . . 2 . . . . . . . . . . . . . . 2 . 1 . 2 . . . . . 1 . . . . . Parts Repaired 7 | . 2 . 1 . . . . . . . . . 1 . . . . . . . . . . . . . . 3 . . . . . . . . . . . . . . . Time 354 | . 52 . 26 . . . . . . . . . 26 . . . . . . . . . . . . . . 250 . . . . . . . . . . . . . . . Parts Recycled . | . . . . . . . . . . . . . . . . . . . . . . . . . . . . . . . . . . . . . . . . . . . . Recycled Matter . | . . . . . . . . . . . . . . . . . . . . . . . . . . . . . . . . . . . . . . . . . . . . Retrieved Matter . | . . . . . . . . . . . . . . . . . . . . . . . . . . . . . . . . . . . . . . . . . . . . Retrieved Components 21 | . 1 . . . . . . . . . . . 9 . . . . . . . 10 . . . . . . . . 1 . . . . . . . . . . . . . Parts Scanalyzed 6 | . . . 5 . . . . . . . . . 1 . . . . . . . . . . . . . . . . . . . . . . . . . . . . . . Part Schematics Acquired 6 | . . . 5 . . . . . . . . . 1 . . . . . . . . . . . . . . . . . . . . . . . . . . . . . . Parts Damaged . | . . . . . . . . . . . . . . . . . . . . . . . . . . . . . . . . . . . . . . . . . . . . Bothacking | -11 -10 -10 -9 -9 -9 -8 -8 -8 -8 -8 -8 -8 -8 -8 -7 -7 -7 -7 -6 -6 -5 -5 -5 -5 -4 -4 -4 -4 -4 -4 -4 -3 -3 -3 -3 -2 -2 -2 -2 -1 -1 -1 -1 ------------ Run | Yrd Mat Min Mat Min Exi Min Mat Gar Mat Gar Mat Gar Mat Gar Fac Was Fac Gar Fac Gar Fac Upp Upp War Pro Fac Gar Fac Gar Fac Gar Res Gar Res Gar Res Gar Res Gar Acc Gar Acc Com Used RIF Installer 11 | . . . . . . . . 1 . 1 . 1 . . . . . 1 . 1 . . . . . . 1 . 1 . . . 1 . 1 . 1 . . . 1 . . Coupler Efficiency 3 | . . . . . . . . . . . . 1 . . . . . . . . . . . . . . . . . . . . 1 . . . 1 . . . . . . Code Merge 2 | . . . . . . . . . . . . . . . . . . . . 1 . . . . . . 1 . . . . . . . . . . . . . . . . Command Fork 1 | . . . . . . . . . . . . . . . . . . 1 . . . . . . . . . . . . . . . . . . . . . . . . . Patrol Navigation 1 | . . . . . . . . . . . . . . . . . . . . . . . . . . . . . 1 . . . . . . . . . . . . . . Structural Interface 1 | . . . . . . . . . . . . . . . . . . . . . . . . . . . . . . . . . . . . . . . . . 1 . . Program Shield 1 | . . . . . . . . . . 1 . . . . . . . . . . . . . . . . . . . . . . . . . . . . . . . . . Autooverride 1 | . . . . . . . . . . . . . . . . . . . . . . . . . . . . . . . . . . . 1 . . . . . . . . Robots Hacked 93 | . . . . . . . . . . 2 . . . . . . . . . 5 5 . . . . . 3 2 2 4 3 5 9 5 5 2 9 4 13 3 5 7 . Non-combat 25 | . . . . . . . . . . . . . . . . . . . . . 3 . . . . . . 2 . 4 . 4 . 1 . 2 . 4 1 1 . 3 . Combat 68 | . . . . . . . . . . 2 . . . . . . . . . 5 2 . . . . . 3 . 2 . 3 1 9 4 5 . 9 . 12 2 5 4 . Autooverrided 8 | . . . . . . . . . . . . . . . . . . . . . . . . . . . . . . . . . . . 1 . 1 . 2 . 3 1 . Robot Hacks Applied 84 | . . . . . . . . . . 2 . . . . . . . . . . 5 . . . . . 3 2 2 5 3 5 9 5 4 2 8 6 11 4 2 6 . parse_system 3 | . . . . . . . . . . . . . . . . . . . . . 1 . . . . . . . . 1 . . . . . . . . . 1 . . . no_distress 4 | . . . . . . . . . . . . . . . . . . . . . 1 . . . . . . . . 1 . . . 1 . . . 1 . . . . . generate_echo 2 | . . . . . . . . . . . . . . . . . . . . . 1 . . . . . . . . . . . . . . 1 . . . . . . . map_walls 2 | . . . . . . . . . . . . . . . . . . . . . 1 . . . . . . . . 1 . . . . . . . . . . . . . drop_inventory 3 | . . . . . . . . . . . . . . . . . . . . . . . . . . . . 1 . 1 . 1 . . . . . . . . . . . find_recycling 1 | . . . . . . . . . . . . . . . . . . . . . 1 . . . . . . . . . . . . . . . . . . . . . . purge_threat 2 | . . . . . . . . . . . . . . . . . . . . . . . . . . . . . . . . . . . . . . 2 . . . . . map_route 8 | . . . . . . . . . . . . . . . . . . . . . . . . . . . . . . 1 . 2 . . . . . 2 . . . 3 . mark_security 1 | . . . . . . . . . . . . . . . . . . . . . . . . . . . . 1 . . . . . . . . . . . . . . . overwrite_iff 1 | . . . . . . . . . . . . . . . . . . . . . . . . . . . . . . . . . . . . . . . 1 . . . . streamctrl_high 1 | . . . . . . . . . . 1 . . . . . . . . . . . . . . . . . . . . . . . . . . . . . . . . . formatsys_high 56 | . . . . . . . . . . 1 . . . . . . . . . . . . . . . . 3 . 2 . 3 2 9 4 4 1 8 1 10 3 2 3 . Relay Couplers Released 125 | . . . . . . . . 3 3 5 . 4 . . . . . 12 . 16 3 . . . . . 10 . 3 . 8 . 14 . 13 . 19 . 6 . 6 . . Machine Destruction 115 | . . . . . . . . 3 . 5 . 4 . . . . . 12 . 12 3 . . . . . 10 . 3 . 8 . 14 . 13 . 16 . 6 . 6 . . Programmers 10 | . . . . . . . . . 3 . . . . . . . . . . 4 . . . . . . . . . . . . . . . . 3 . . . . . . Attached 29 | . . . . . . . . . . 1 . . . . . . . . 1 1 1 . . . . . 4 . 1 . 4 . 5 . 6 . 2 . 1 . 2 . . Merged Code Value 534 | . . . . . . . . . . . . . . . . . . . . 29 . . . . . . 36 . 20 . 32 . 113 . 59 . 96 . 71 . 78 . . Fabnet Peak Effective % 6 | . . . . . . . . . . . . . . . . . . . 6 6 2 2 2 2 . . . . . . . . . . . . . . . . . . . Autooverrided 6 | . . . . . . . . . . . . . . . . . . . . 5 1 . . . . . . . . . . . . . . . . . . . . . . Robots Rewired 37 | . . . . . . . . 1 . 3 . 3 . . . . . 9 . . . . . . . . 1 . 3 . . . 3 . . . 3 . 7 . 4 . . Allies Hacked 3 | . . . . . . . . . . . . . . . . . . 1 . . . . . . . . . . . . . . 1 . . . 1 . . . . . . Hacks Repelled . | . . . . . . . . . . . . . . . . . . . . . . . . . . . . . . . . . . . . . . . . . . . . Allies | -11 -10 -10 -9 -9 -9 -8 -8 -8 -8 -8 -8 -8 -8 -8 -7 -7 -7 -7 -6 -6 -5 -5 -5 -5 -4 -4 -4 -4 -4 -4 -4 -3 -3 -3 -3 -2 -2 -2 -2 -1 -1 -1 -1 -------- Run | Yrd Mat Min Mat Min Exi Min Mat Gar Mat Gar Mat Gar Mat Gar Fac Was Fac Gar Fac Gar Fac Upp Upp War Pro Fac Gar Fac Gar Fac Gar Res Gar Res Gar Res Gar Res Gar Acc Gar Acc Com Total Allies 142 | . . 1 . 4 . . . 1 . 5 . 3 . . . 20 . 9 . 5 1 . . . . . 4 . 6 1 3 2 14 4 5 1 12 1 24 3 9 4 . Largest Group 20 | . . 1 1 4 4 4 . 1 . 5 . 2 3 . . 20 19 17 9 10 1 . . . . . 3 . 6 . 3 1 12 2 4 1 6 1 12 14 2 1 . Highest-Rated Group 861 | . . 31 31 71 71 71 . 15 . 93 . 32 48 . . 470 456 494 287 380 47 . . . . . 148 . 177 . 141 64 598 128 311 45 374 10 746 861 64 64 . Highest-Rated Ally 148 | . . 31 31 31 31 31 . 15 . 29 . 16 16 . . 35 35 43 43 85 47 . . . . . 148 . 47 . 47 64 64 64 116 45 69 10 69 69 64 64 . Total Orders 7 | . . . . . . . . . . . . . . . . . . 2 . . . . . . . . 4 . . . . 1 . . . . . . . . . . . STAY 1 | . . . . . . . . . . . . . . . . . . 1 . . . . . . . . . . . . . . . . . . . . . . . . . ROAM 3 | . . . . . . . . . . . . . . . . . . . . . . . . . . . 2 . . . . 1 . . . . . . . . . . . FOLLOW 3 | . . . . . . . . . . . . . . . . . . 1 . . . . . . . . 2 . . . . . . . . . . . . . . . . Ally Attacks 702 | . . . 8 . . 14 . 9 . 16 . . 64 . . . 66 131 3 37 1 . . . . . 45 . 5 . 6 1 75 16 18 . 77 . 66 20 12 12 . Total Damage 18720 | . . . 127 . . 198 . 167 . 152 . . 576 . . . 760 2631 323 1283 37 . . . . . 1241 . 69 . 167 47 2205 460 620 . 3299 . 3186 636 221 315 . Kills 106 | . . . 1 . . 2 . 1 . 2 . . 7 . . . 6 20 2 7 . . . . . . 8 . . . 2 . 14 1 2 . 14 . 13 2 1 1 . Allies Corrupted 9 | . . . . . . . . . . . . . . . . . . . . . . . . . . . . . 3 . . . 2 . . . . . 2 . 1 1 . Allies Melted 4 | . . . . . . . . . . . . . . . . . . . . 1 . . . . . . . . . . . . . 1 1 . . . 1 . . . . Intel | -11 -10 -10 -9 -9 -9 -8 -8 -8 -8 -8 -8 -8 -8 -8 -7 -7 -7 -7 -6 -6 -5 -5 -5 -5 -4 -4 -4 -4 -4 -4 -4 -3 -3 -3 -3 -2 -2 -2 -2 -1 -1 -1 -1 ------- Run | Yrd Mat Min Mat Min Exi Min Mat Gar Mat Gar Mat Gar Mat Gar Fac Was Fac Gar Fac Gar Fac Upp Upp War Pro Fac Gar Fac Gar Fac Gar Res Gar Res Gar Res Gar Res Gar Acc Gar Acc Com Active Infowar (turns) 11810 | 14 1975 80 2199 931 593 24 . . . . . . . . . . . . . . 1175 477 777 67 133 3 . 109 . 114 121 248 309 368 309 74 340 135 301 108 201 385 240 Optics 109 | . . . . . . . . . . . . . . . . . . . . . . . . . . . . 109 . . . . . . . . . . . . . . . IFF 822 | . . . . . . . . . . . . . . . . . . . . . . . 619 67 133 3 . . . . . . . . . . . . . . . . . Structural 724 | . . . . . . . . . . . . . . . . . . . . . 176 477 71 . . . . . . . . . . . . . . . . . . . . Seismic 5816 | 14 1975 80 2199 931 593 24 . . . . . . . . . . . . . . . . . . . . . . . . . . . . . . . . . . . . . Machine Analysis 3003 | . . . . . . . . . . . . . . . . . . . . . . . . . . . . . . 44 121 248 309 368 309 74 340 135 301 108 201 385 60 Cloaking 353 | . . . . . . . . . . . . . . . . . . . . . . . 353 . . . . . . . . . . . . . . . . . . . . Jamming 3322 | . . . . . . . . . . . . . . . . . . . . . 1173 . . . . . . . . 114 121 248 309 365 309 74 340 135 134 . . . . ECM 205 | . . . . . . . . . . . . . . . . . . . . . . . . . . . . . . . . . . . . . . . . . . . 205 Robot Analysis Total . | . . . . . . . . . . . . . . . . . . . . . . . . . . . . . . . . . . . . . . . . . . . . Derelict Logs Recovered 5 | . . . . 1 . . . . . . . . . . . . . . . . . 1 2 . 1 . . . . . . . . . . . . . . . . . . Drone Launches . | . . . . . . . . . . . . . . . . . . . . . . . . . . . . . . . . . . . . . . . . . . . . Drone Recoveries . | . . . . . . . . . . . . . . . . . . . . . . . . . . . . . . . . . . . . . . . . . . . . Exploration | -11 -10 -10 -9 -9 -9 -8 -8 -8 -8 -8 -8 -8 -8 -8 -7 -7 -7 -7 -6 -6 -5 -5 -5 -5 -4 -4 -4 -4 -4 -4 -4 -3 -3 -3 -3 -2 -2 -2 -2 -1 -1 -1 -1 ------------- Run | Yrd Mat Min Mat Min Exi Min Mat Gar Mat Gar Mat Gar Mat Gar Fac Was Fac Gar Fac Gar Fac Upp Upp War Pro Fac Gar Fac Gar Fac Gar Res Gar Res Gar Res Gar Res Gar Acc Gar Acc Com Turns Passed 26853 | 132 1975 80 2210 931 593 664 732 1619 270 766 505 731 1502 558 970 576 497 1737 136 1247 1575 701 967 67 168 421 313 510 217 238 121 248 309 368 309 74 340 135 301 108 201 385 346 Spaces Moved 21403 | 68 918 42 853 456 294 292 304 844 177 433 180 280 634 196 541 302 193 839 75 518 688 579 863 172 422 713 620 852 245 795 265 674 608 976 441 235 626 281 515 305 388 985 716 Core 194 | 5 . . . . . . . . . . . . . . . . . . . . 32 79 7 . . 1 . 1 65 . . . . . . . . . . . . . 4 Treads 7560 | 63 918 42 853 456 294 292 304 186 . . . 127 634 196 541 302 193 839 75 518 332 324 71 . . . . . . . . . . . . . . . . . . . . Legs 1620 | . . . . . . . . 658 177 433 180 153 . . . . . . . . 1 18 . . . . . . . . . . . . . . . . . . . . . Wheels 484 | . . . . . . . . . . . . . . . . . . . . . 209 . 275 . . . . . . . . . . . . . . . . . . . . Hover 184 | . . . . . . . . . . . . . . . . . . . . . 23 . 14 . . . . . . . . . . . . . . . . . . . 147 Flight 11361 | . . . . . . . . . . . . . . . . . . . . . 91 158 496 172 422 712 620 851 180 795 265 674 608 976 441 235 626 281 515 305 388 985 565 Fastest Speed 15 | 50 160 160 160 200 200 200 152 120 120 120 120 190 162 162 162 162 162 160 160 160 32 32 39 39 33 33 20 17 17 15 18 18 18 21 24 23 23 23 27 27 25 25 37 Average Speed 90 | 151 160 160 198 200 200 200 157 128 120 120 132 212 170 164 162 162 162 161 160 174 150 112 91 39 36 35 29 22 52 17 18 18 18 23 24 23 23 25 27 27 27 28 41 Slowest Speed 1200 | 160 160 160 240 200 200 200 160 400 120 120 190 240 240 165 162 162 162 163 160 240 1200 270 650 39 39 120 105 50 150 65 18 18 21 24 24 24 23 102 27 27 102 37 100 Overloaded Moves 55 | . . . . . . . . . . . . . . . . . . . . . . . . . . . 39 16 . . . . . . . . . . . . . . . Propulsion Burnouts . | . . . . . . . . . . . . . . . . . . . . . . . . . . . . . . . . . . . . . . . . . . . . Robots Hopped 54 | . . . . . . . . . . . . . . . . . . . . . . . . . . 2 20 1 . 5 . 2 . 6 . . 1 . . 1 2 14 . Potential Cave-ins . | . . . . . . . . . . . . . . . . . . . . . . . . . . . . . . . . . . . . . . . . . . . . Cave-ins Triggered . | . . . . . . . . . . . . . . . . . . . . . . . . . . . . . . . . . . . . . . . . . . . . Exploration Rate (%) 40 | 5 97 12 61 82 69 33 26 92 22 45 15 49 64 31 15 95 7 88 3 57 14 66 82 17 58 13 62 23 17 23 34 25 66 25 44 6 65 9 53 10 49 31 24 Regions Visited 43 Branch Regions 9 Pre-discovered Areas 3 | . . . 1 . 1 . . . . . . . . . . . . . . . . . . . 1 . . . . . . . . . . . . . . . . . . Known Exits Taken 20 | . . . 1 . . 1 1 . 1 . 1 . 1 . . . 1 . 1 . . 1 1 1 1 1 . 1 . 1 . 1 . 1 . 1 . 1 . 1 . . . Unknown Exits Taken 7 | 1 1 1 . 1 1 . . . . . . . . . . . . . . . 1 . . . . . . . . . . . . . . . . . . . . 1 . Scrap Searched 10 | . . 1 . 1 . . . . . . . . . . . . . . . . . 4 3 . 1 . . . . . . . . . . . . . . . . . . Spaces Dug 209 | . 1 . . . . 12 4 13 5 25 . 3 . 3 10 . 3 5 . 3 15 . . . . 8 1 9 4 10 3 14 12 12 5 1 4 3 5 1 5 10 . Terrain Destroyed 427 | . 1 . . . . 12 11 22 5 36 7 4 6 13 11 . 3 17 . 21 66 1 15 . 1 8 1 9 4 10 3 14 12 12 5 1 4 3 5 35 5 44 . Melee 154 | . 1 . . . . . 4 4 4 4 . 3 . 3 10 . 3 5 . 1 5 . . . . 8 1 9 4 10 3 14 12 12 5 1 4 3 5 1 5 10 . Projectile 65 | . . . . . . . 7 3 1 3 . 1 . . 1 . . . . 13 21 . 15 . . . . . . . . . . . . . . . . . . . . AOE 207 | . . . . . . 12 . 15 . 29 7 . 6 10 . . . 12 . 7 40 . . . 1 . . . . . . . . . . . . . . 34 . 34 . Terrain Rammed . | . . . . . . . . . . . . . . . . . . . . . . . . . . . . . . . . . . . . . . . . . . . . Walls Destroyed . | . . . . . . . . . . . . . . . . . . . . . . . . . . . . . . . . . . . . . . . . . . . . Machines Disabled . | . . . . . . . . . . . . . . . . . . . . . . . . . . . . . . . . . . . . . . . . . . . . Actions | -11 -10 -10 -9 -9 -9 -8 -8 -8 -8 -8 -8 -8 -8 -8 -7 -7 -7 -7 -6 -6 -5 -5 -5 -5 -4 -4 -4 -4 -4 -4 -4 -3 -3 -3 -3 -2 -2 -2 -2 -1 -1 -1 -1 --------- Run | Yrd Mat Min Mat Min Exi Min Mat Gar Mat Gar Mat Gar Mat Gar Fac Was Fac Gar Fac Gar Fac Upp Upp War Pro Fac Gar Fac Gar Fac Gar Res Gar Res Gar Res Gar Res Gar Acc Gar Acc Com Total 26930 | 86 1198 49 1189 469 303 329 502 1208 227 615 422 392 989 360 613 379 372 1095 91 757 1081 620 969 171 433 829 717 1157 305 863 321 776 775 1082 612 248 773 333 649 327 446 1046 752 Wait 2825 | 3 123 2 142 9 . . 128 208 22 78 202 25 237 89 24 40 165 77 5 97 207 . 26 . 2 63 65 252 4 19 2 58 103 53 120 . 77 10 69 3 6 10 . Move 21273 | 67 917 41 852 455 293 291 304 843 176 431 179 279 634 195 541 301 193 838 75 517 687 578 862 171 421 709 588 849 244 786 264 669 607 964 440 234 623 281 514 303 384 957 716 Hop 42 | . . . . . . . . . . . . . . . . . . . . . . . . . . 2 11 1 . 4 . 2 . 6 . . 1 . . 1 1 13 . Pick Up 268 | 4 19 1 33 1 4 3 12 7 5 5 9 2 26 8 13 3 1 16 1 26 14 8 7 . . 3 4 5 . 4 3 2 1 3 4 2 1 1 2 . 2 3 . Fast Attach 239 | 7 3 . 5 . . 1 1 5 3 . . 1 7 4 2 5 2 6 4 3 22 14 19 . 3 9 11 16 . 6 1 6 3 12 2 2 3 11 2 4 13 6 15 Attach 93 | . 3 . 4 . . 2 3 2 . . 3 1 1 9 3 . . 1 2 13 18 4 4 . 1 2 6 2 . . 1 . 1 . 1 . . . 1 2 . 1 2 Detach 23 | . . . . . . . . . . . . . . . . . . 1 . 1 4 . 1 . 2 1 6 3 . . . . . 1 . . . . . 1 . . 2 Swap 264 | 1 9 . 24 . 1 5 11 27 3 12 3 4 19 7 2 3 3 23 . 22 27 6 3 . . 1 5 5 2 7 3 2 2 1 9 1 2 1 2 . . 5 1 Drop 361 | . 7 1 38 1 5 5 13 14 9 3 8 1 28 4 9 11 3 25 4 19 12 8 17 . 2 8 5 12 1 12 . 7 3 14 4 2 4 13 3 3 8 7 8 Fire 746 | 4 84 3 90 3 . 22 26 58 2 23 18 6 36 25 6 . . 46 . 51 72 2 25 . 2 . 9 2 13 2 . . 5 2 10 4 28 9 31 6 11 9 1 Melee 550 | . 32 . 1 . . . 4 27 7 11 . 18 . 19 13 15 5 62 . 3 18 . 5 . . 31 7 9 16 23 14 28 39 23 18 2 31 7 18 1 21 18 4 Ram . | . . . . . . . . . . . . . . . . . . . . . . . . . . . . . . . . . . . . . . . . . . . . Kick . | . . . . . . . . . . . . . . . . . . . . . . . . . . . . . . . . . . . . . . . . . . . . Crush 3 | . 1 1 . . . . . . . . . . . . . . . . . 1 . . . . . . . . . . . . . . . . . . . . . . . Escape Stasis 77 | . . . . . . . . 5 . . . 19 . . . . . . . 4 . . . . . . . 1 . . 30 . . . . . . . . . . 15 3 Rewire 152 | . . . . . . . . 2 . 49 . 36 . . . 1 . . . . . . . . . . . . 25 . 3 2 11 3 4 1 3 . 7 3 . 2 . Trap 1 | . . . . . . . . . . . . . 1 . . . . . . . . . . . . . . . . . . . . . . . . . . . . . . Miscellaneous 13 | . . . . . . . . 10 . 3 . . . . . . . . . . . . . . . . . . . . . . . . . . . . . . . . . Route ------- -11/Scrapyard -10/Materials (discovered 5 exits: *Mat x3 / [*Min] / [*Sub]) -10/Mines -9/Materials (discovered 5 exits: *Mat x3 / *Min / *Sto) -9/Mines (discovered 3 exits: *Mat x2 / *Exi) -9/Exiles -8/Mines -8/Materials (discovered 2 exits: *Fac / Gar) -8/Garrison (discovered 3 exits: *Mat x3) -8/Materials -8/Garrison (discovered 2 exits: *Fac / *Mat) -8/Materials -8/Garrison (discovered 4 exits: *Fac x3 / *Mat) -8/Materials (discovered 3 exits: *Fac x2 / Gar) -8/Garrison -7/Factory -7/Waste -7/Factory (discovered 2 exits: [*Low] / Gar) -7/Garrison (discovered 3 exits: *Fac x3) -6/Factory -6/Garrison (discovered 2 exits: *Fac x2) -5/Factory -5/Upper Caves -5/Upper Caves (discovered 2 exits: *Fac / *War) -5/Warlord -4/Proximity Caves -4/Factory (discovered 4 exits: Upp x2 / Arm / Gar) -4/Garrison -4/Factory -4/Garrison -4/Factory (discovered 4 exits: *Upp x2 / Arm / Gar) -4/Garrison -3/Research (discovered 2 exits: Qua / Gar) -3/Garrison -3/Research (discovered 2 exits: *Res / Gar) -3/Garrison (discovered 3 exits: *Res x3) -2/Research -2/Garrison (discovered 2 exits: *Res x2) -2/Research (discovered 5 exits: Acc x3 / [Tes] / Gar) -2/Garrison (discovered 2 exits: *Acc x2) -1/Access -1/Garrison -1/Access -1/Command History --------- Turn | Location | Event 10 | -11/Scrapyard | Discovered new exit (range 16) 133 | -11/Scrapyard | Entered Materials 307 | -10/Materials | Build established: Mutant 414 | -10/Materials | Discovered new exit (range 12) 475 | -10/Materials | Discovered new exit (range 10) 595 | -10/Materials | Discovered new exit (range 16) 978 | -10/Materials | Discovered new exit (range 12) 1645 | -10/Materials | Repaired Lgt. Treads 1672 | -10/Materials | Repaired Lgt. Treads 1956 | -10/Materials | Core integrity fell below 50% 2020 | -10/Materials | Discovered new exit (range 13) 2108 | -10/Materials | Entered Mines 2111 | -10/Mines | Received a Mining Laser from a helpful Derelict 2167 | -10/Mines | Discovered new exit (range 5) 2183 | -10/Mines | Assembled infested the area 2188 | -10/Mines | Assisted by a Guerilla fighting off Assembled 2188 | -10/Mines | Entered Materials 2188 | -9/Materials | Accompanied by 1 ally 2188 | -9/Materials | Evolved 2 slots: Utility x1, Weapon x1 2254 | -9/Materials | Identified exit to Mines 2254 | -9/Materials | Identified exit to Storage 2509 | -9/Materials | Build established: Gunner 2772 | -9/Materials | Repaired Lgt. Treads 3033 | -9/Materials | Build established: Scavenger-Gunner 3118 | -9/Materials | Central database locked down 3254 | -9/Materials | Discovered new exit (range 10) 3277 | -9/Materials | Identified exit to Materials 4189 | -9/Materials | Learned location of Mines (-9) 4236 | -9/Materials | Learned 2 Storage zone layouts 4300 | -9/Materials | Learned 4 Recycling zone layouts 4336 | -9/Materials | Learned Storage trap positions 4382 | -9/Materials | Learned location of 1 exit from Storage 4398 | -9/Materials | Entered Mines 4431 | -9/Mines | Met a Derelict bent on vengeance 4457 | -9/Mines | Assisted by bots powering up and referring to "LRC-V3" 4513 | -9/Mines | Learned 4 Materials zone layouts 5055 | -9/Mines | Discovered exit to Materials (range 14) 5058 | -9/Mines | Met a Derelict testing a Signal Generator 5265 | -9/Mines | Discovered exit to Materials (range 15) 5315 | -9/Mines | Deemed a non-threat by the Exiles lab entrance 5315 | -9/Mines | Discovered new exit (range 5) 5329 | -9/Mines | Entered Exiles 5329 | -9/Exiles | Accompanied by 4 allies 5386 | -9/Exiles | Met 8R-AWN 5418 | -9/Exiles | Met EX-HEX 5476 | -9/Exiles | Met EX-BIN 5502 | -9/Exiles | Aligned with FarCom system 5504 | -9/Exiles | Given EX-Vault access code 5554 | -9/Exiles | Opened EX-Vault 5567 | -9/Exiles | Found Longsword +1 5649 | -9/Exiles | Warned to stay clear of 0b10 Research branches 5705 | -9/Exiles | Met EX-DEC 5723 | -9/Exiles | Learned location of Zion (-6) 5902 | -9/Exiles | Discovered new exit (range 10) 5922 | -9/Exiles | Left Exiles lab with Longsword +1 5922 | -9/Exiles | Entered Mines 5922 | -8/Mines | Accompanied by 4 allies 5986 | -8/Mines | Discovered exit to Materials (range 13) 6215 | -8/Mines | Build established: Scavenger-Skirmisher 6586 | -8/Mines | Entered Materials 6586 | -8/Materials | Evolved 2 slots: Propulsion x2 7129 | -8/Materials | Discovered new exit (range 7) 7143 | -8/Materials | Garrison activated, responded to threat 7148 | -8/Materials | Identified exit to Factory 7318 | -8/Materials | Identified exit to Garrison 7318 | -8/Materials | Entered Garrison 7554 | -8/Garrison | Triggered checkpoint 7778 | -8/Garrison | Triggered checkpoint 7826 | -8/Garrison | Triggered checkpoint 7966 | -8/Garrison | Triggered checkpoint 8144 | -8/Garrison | Triggered checkpoint 8178 | -8/Garrison | Destroyed 9 combat bots 8240 | -8/Garrison | Discovered new exit (range 8) 8340 | -8/Garrison | Triggered checkpoint 8381 | -8/Garrison | Discovered new exit (range 26) 8381 | -8/Garrison | Discovered new exit (range 44) 8381 | -8/Garrison | Discovered new exit (range 62) 8428 | -8/Garrison | Triggered checkpoint 8494 | -8/Garrison | Triggered checkpoint 8648 | -8/Garrison | Build established: Skirmisher 8656 | -8/Garrison | Triggered checkpoint 8686 | -8/Garrison | Installed Relay Interface Framework 8703 | -8/Garrison | Garrison Relay disabled 8847 | -8/Garrison | Phase Generator disabled 8924 | -8/Garrison | Learned Materials security intel 8937 | -8/Garrison | Entered Materials 9203 | -8/Materials | Identified exit to Garrison 9207 | -8/Materials | Entered Garrison 9229 | -8/Garrison | Triggered checkpoint 9247 | -8/Garrison | Discovered new exit (range 6) 9471 | -8/Garrison | Triggered checkpoint 9475 | -8/Garrison | Lost 3 allies 9523 | -8/Garrison | Garrison Relay disabled 9548 | -8/Garrison | Expanded RIF knowledge: Program Shield 9601 | -8/Garrison | Triggered checkpoint 9727 | -8/Garrison | Core integrity fell below 50% 9821 | -8/Garrison | Discovered exit to Factory (range 8) 9973 | -8/Garrison | Entered Materials 10195 | -8/Materials | Garrison activated, responded to threat 10373 | -8/Materials | First assault squad dispatched 10400 | -8/Materials | Garrison activated, responded to threat 10472 | -8/Materials | Identified exit to Garrison 10478 | -8/Materials | Entered Garrison 10533 | -8/Garrison | Discovered exit to Factory (range 53) 10533 | -8/Garrison | Discovered exit to Factory (range 70) 10533 | -8/Garrison | Discovered exit to Factory (range 37) 10533 | -8/Garrison | Discovered new exit (range 80) 10648 | -8/Garrison | Triggered checkpoint 10779 | -8/Garrison | Build established: Mutant 10781 | -8/Garrison | Expanded RIF knowledge: Coupler Efficiency 10808 | -8/Garrison | Triggered checkpoint 10834 | -8/Garrison | Garrison Relay disabled 11012 | -8/Garrison | Triggered checkpoint 11122 | -8/Garrison | Triggered checkpoint 11148 | -8/Garrison | Build established: Scavenger-Mutant 11209 | -8/Garrison | Entered Materials 11209 | -8/Materials | Accompanied by 3 allies 11646 | -8/Materials | Build established: Skirmisher 11781 | -8/Materials | Discovered exit to Factory (range 8) 12037 | -8/Materials | Build established: Scavenger-Skirmisher 12070 | -8/Materials | Repaired Hcp. Storage Unit 12337 | -8/Materials | Discovered exit to Factory (range 7) 12621 | -8/Materials | Build established: Skirmisher 12648 | -8/Materials | Garrison activated, responded to threat 12711 | -8/Materials | Identified exit to Garrison 12711 | -8/Materials | Entered Garrison 13045 | -8/Garrison | Triggered checkpoint 13048 | -8/Garrison | Triggered checkpoint 13061 | -8/Garrison | Core integrity fell below 20% 13111 | -8/Garrison | System corruption reached 10% 13159 | -8/Garrison | Lost 10 parts (2p4n2u2w) 13256 | -8/Garrison | Discovered exit to Factory (range 8) 13269 | -8/Garrison | Entered Factory 13269 | -7/Factory | Evolved 2 slots: Power x1, Weapon x1 13557 | -7/Factory | Build established: Scavenger-Skirmisher 14239 | -7/Factory | Sucked down chute 14239 | -7/Factory | Entered Waste 14240 | -7/Waste | Joined by Warlord forces that had cleared the area 14600 | -7/Waste | Discovered new exit (range 14) 14815 | -7/Waste | Entered Factory 14815 | -7/Factory | Accompanied by 19 allies 14898 | -7/Factory | Allied Derelicts emerged from ambush trap array 15052 | -7/Factory | Discovered new exit (range 14) 15147 | -7/Factory | Identified exit to Garrison 15312 | -7/Factory | Entered Garrison 15312 | -7/Garrison | Accompanied by 13 allies 15378 | -7/Garrison | H-XX Assembler disabled 15436 | -7/Garrison | Build established: Skirmisher 15693 | -7/Garrison | Triggered checkpoint 15722 | -7/Garrison | Garrison Relay disabled 15751 | -7/Garrison | Expanded RIF knowledge: Command Fork 15814 | -7/Garrison | Triggered checkpoint 15817 | -7/Garrison | Triggered checkpoint 15824 | -7/Garrison | Triggered checkpoint 15829 | -7/Garrison | Triggered checkpoint 15853 | -7/Garrison | Build established: Commander-Skirmisher 15858 | -7/Garrison | Destroyed 10 combat bots 15874 | -7/Garrison | Lost 4 allies 15946 | -7/Garrison | Discovered new exit (range 14) 16122 | -7/Garrison | Triggered checkpoint 16125 | -7/Garrison | Discovered new exit (range 8) 16248 | -7/Garrison | Garrison Relay disabled 16443 | -7/Garrison | Discovered new exit (range 10) 16488 | -7/Garrison | Triggered checkpoint 16528 | -7/Garrison | Garrison Relay disabled 16889 | -7/Garrison | Build established: Commander-Tank 16984 | -7/Garrison | P-60 Hacker assimilated allied Gladiator 4a 17049 | -7/Garrison | Entered Factory 17049 | -6/Factory | Accompanied by 9 allies 17049 | -6/Factory | Evolved 2 slots: Utility x2 17184 | -6/Factory | Identified exit to Garrison 17185 | -6/Factory | Entered Garrison 17185 | -6/Garrison | Accompanied by 8 allies 17220 | -6/Garrison | Local machine network offline 17245 | -6/Garrison | Triggered checkpoint 17263 | -6/Garrison | Spotted B-75 Beast 17276 | -6/Garrison | Destroyed B-75 Beast 17306 | -6/Garrison | Lost 8 allies 17364 | -6/Garrison | Build established: Scavenger-Tank 17605 | -6/Garrison | Triggered checkpoint 17746 | -6/Garrison | Lost 5 parts (1p3n1w) 17955 | -6/Garrison | Build established: Scavenger-Skirmisher 18050 | -6/Garrison | Discovered new exit (range 10) 18111 | -6/Garrison | Triggered checkpoint 18160 | -6/Garrison | Discovered new exit (range 13) 18203 | -6/Garrison | Triggered checkpoint 18241 | -6/Garrison | Expanded RIF knowledge: Code Merge 18289 | -6/Garrison | Garrison Relay disabled 18316 | -6/Garrison | Garrison Relay disabled 18432 | -6/Garrison | Entered Factory 18432 | -5/Factory | Evolved 2 slots: Utility x2 18532 | -5/Factory | Fabricated Hvy. Siege Treads? 18855 | -5/Factory | Build established: Scavenger-Tank 19032 | -5/Factory | First assault squad dispatched 19264 | -5/Factory | Lost 12 parts (2p5n1u4w) 19639 | -5/Factory | Spotted B-75 Beast 19689 | -5/Factory | Lost 3 parts (1p1u1w) 19708 | -5/Factory | Destroyed B-75 Beast 19900 | -5/Factory | Local machine network offline 19954 | -5/Factory | Released all parts (14) 19975 | -5/Factory | Lost 5 parts (1p1n3w) 20001 | -5/Factory | Discovered new exit (range 4) 20007 | -5/Factory | Entered Upper Caves 20063 | -5/Upper Caves | Core integrity fell below 50% 20086 | -5/Upper Caves | Identified exit to Upper Caves 20103 | -5/Upper Caves | Found DCF Scrap (13 items) 20239 | -5/Upper Caves | System corruption reached 10% 20336 | -5/Upper Caves | Entered an active Warlord outpost 20356 | -5/Upper Caves | Learned 8 Research zone layouts 20356 | -5/Upper Caves | Learned Extension trap positions 20356 | -5/Upper Caves | Learned Armory emergency access door positions 20356 | -5/Upper Caves | Learned Factory security intel 20419 | -5/Upper Caves | Build established: Derelict-Tank 20708 | -5/Upper Caves | Entered another Upper Caves area 20754 | -5/Upper Caves | Spotted B-75 Beast 20819 | -5/Upper Caves | Destroyed B-75 Beast 20850 | -5/Upper Caves | Lost 8 parts (1p2n3u2w) 20938 | -5/Upper Caves | Discovered new exit (range 4) 20941 | -5/Upper Caves | Identified exit to Factory 20977 | -5/Upper Caves | Found DCF Scrap (13 items) 21360 | -5/Upper Caves | Build established: Derelict-Skirmisher 21571 | -5/Upper Caves | Learned Factory garrison access intel 21644 | -5/Upper Caves | Discovered new exit (range 15) 21658 | -5/Upper Caves | Identified exit to Warlord 21660 | -5/Upper Caves | Learned Factory garrison access intel 21675 | -5/Upper Caves | Entered Warlord 21689 | -5/Warlord | System corruption cleaned by Quarantine Array 21697 | -5/Warlord | Discovered new exit (range 14) 21701 | -5/Warlord | Identified exit to Proximity Caves 21716 | -5/Warlord | RIF detected upon attempting to enter Warlord's base 21716 | -5/Warlord | Attacked by Warlord forces 21742 | -5/Warlord | Entered Proximity Caves 21775 | -4/Proximity Caves | Build established: Derelict-Mutant 21842 | -4/Proximity Caves | Discovered exit to Factory (range 9) 21854 | -4/Proximity Caves | Learned location of Testing (-2) 21910 | -4/Proximity Caves | Entered Factory 21910 | -4/Factory | Evolved 2 slots: Propulsion x1, Utility x1 21912 | -4/Factory | Loaded intel: 4 garrison access locations 21931 | -4/Factory | Identified exit to Upper Caves 21931 | -4/Factory | Identified exit to Armory 22044 | -4/Factory | Fabricated Stasis Canceller? 22216 | -4/Factory | Lost 4 parts (1p2n1u) 22223 | -4/Factory | Fabricated Cld. Nuclear Pulse Thruster (x1) 22267 | -4/Factory | Spotted B-86 Titan 22331 | -4/Factory | Identified exit to Garrison 22331 | -4/Factory | Entered Garrison 22331 | -4/Garrison | Spotted B-75 Beast 22336 | -4/Garrison | Rewired B-90 Cyclops 22344 | -4/Garrison | Allies destroyed B-75 Beast 22358 | -4/Garrison | Lost 4 parts (2n2u) 22415 | -4/Garrison | Triggered checkpoint 22467 | -4/Garrison | Garrison Relay disabled 22557 | -4/Garrison | Triggered checkpoint 22571 | -4/Garrison | Triggered checkpoint 22572 | -4/Garrison | Garrison Relay disabled 22593 | -4/Garrison | Triggered checkpoint 22611 | -4/Garrison | Triggered checkpoint 22628 | -4/Garrison | Discovered new exit (range 15) 22631 | -4/Garrison | Identified exit to Factory 22637 | -4/Garrison | Core integrity fell below 50% 22638 | -4/Garrison | Expanded RIF knowledge: Code Merge 22644 | -4/Garrison | Entered Factory 22645 | -4/Factory | Loaded intel: 4 garrison access locations 22652 | -4/Factory | Lost 3 allies 22675 | -4/Factory | Lost 6 parts (1p4n1u) 22933 | -4/Factory | Repaired Cld. Nuclear Pulse Thruster 22999 | -4/Factory | Repaired Adv. Surge Thruster+? 23034 | -4/Factory | Repaired Gravity Flail 23047 | -4/Factory | Spotted B-86 Titan 23154 | -4/Factory | Identified exit to Garrison 23154 | -4/Factory | Entered Garrison 23157 | -4/Garrison | Expanded RIF knowledge: Patrol Navigation 23160 | -4/Garrison | Triggered checkpoint 23161 | -4/Garrison | Garrison Relay disabled 23164 | -4/Garrison | Triggered checkpoint 23190 | -4/Garrison | Heavy support dispatched to Research 23204 | -4/Garrison | Triggered checkpoint 23205 | -4/Garrison | Discovered new exit (range 5) 23219 | -4/Garrison | Identified exit to Factory 23302 | -4/Garrison | Murdered 3 allies 23350 | -4/Garrison | Triggered checkpoint 23371 | -4/Garrison | Entered Factory 23392 | -4/Factory | Central database locked down 23607 | -4/Factory | System corruption reached 10% 23609 | -4/Factory | Spotted B-86 Titan 23609 | -4/Factory | Identified exit to Garrison 23609 | -4/Factory | Entered Garrison 23671 | -4/Garrison | Build established: Sprinter 23684 | -4/Garrison | Garrison Relay disabled 23699 | -4/Garrison | Spotted B-86 Titan 23700 | -4/Garrison | Triggered checkpoint 23709 | -4/Garrison | Triggered checkpoint 23715 | -4/Garrison | Garrison Relay disabled 23727 | -4/Garrison | Discovered new exit (range 12) 23729 | -4/Garrison | Identified exit to Research 23730 | -4/Garrison | Entered Research 23730 | -3/Research | Evolved 2 slots: Utility x2 23731 | -3/Research | Identified exit to Quarantine 23740 | -3/Research | Central database locked down 23825 | -3/Research | Fabricated Stasis Canceller? 23964 | -3/Research | Found Fusion Bomb Launcher 23977 | -3/Research | Identified exit to Garrison 23978 | -3/Research | Entered Garrison 23987 | -3/Garrison | Triggered checkpoint 23987 | -3/Garrison | Garrison Relay disabled 24002 | -3/Garrison | Expanded RIF knowledge: Coupler Efficiency 24024 | -3/Garrison | Triggered checkpoint 24125 | -3/Garrison | Garrison Relay disabled 24136 | -3/Garrison | Triggered checkpoint 24149 | -3/Garrison | Triggered checkpoint 24178 | -3/Garrison | Triggered checkpoint 24184 | -3/Garrison | Garrison Relay disabled 24196 | -3/Garrison | Triggered checkpoint 24285 | -3/Garrison | Discovered new exit (range 10) 24286 | -3/Garrison | Identified exit to Research 24287 | -3/Garrison | Entered Research 24403 | -3/Research | Fabricated Enh. Hardcell Cannon? 24486 | -3/Research | Discovered new exit (range 5) 24488 | -3/Research | Identified exit to Research 24561 | -3/Research | Spotted B-86 Titan 24655 | -3/Research | Identified exit to Garrison 24655 | -3/Research | Entered Garrison 24663 | -3/Garrison | Triggered checkpoint 24679 | -3/Garrison | Garrison Relay disabled 24687 | -3/Garrison | Garrison Relay disabled 24769 | -3/Garrison | Triggered checkpoint 24802 | -3/Garrison | Spotted B-86 Titan 24875 | -3/Garrison | Assimilated Titan 8a with formatsys_high 24882 | -3/Garrison | Discovered exit to Research (range 55) 24882 | -3/Garrison | Discovered exit to Research (range 37) 24882 | -3/Garrison | Discovered exit to Research (range 60) 24905 | -3/Garrison | Triggered checkpoint 24917 | -3/Garrison | Triggered checkpoint 24918 | -3/Garrison | Triggered checkpoint 24948 | -3/Garrison | Expanded RIF knowledge: Autooverride 24950 | -3/Garrison | Garrison Relay disabled 24964 | -3/Garrison | Entered Research 24964 | -2/Research | Evolved 2 slots: Propulsion x1, Utility x1 25037 | -2/Research | Identified exit to Garrison 25038 | -2/Research | Entered Garrison 25038 | -2/Garrison | Accompanied by 1 ally 25076 | -2/Garrison | Triggered checkpoint 25077 | -2/Garrison | Garrison Relay disabled 25080 | -2/Garrison | Triggered checkpoint 25158 | -2/Garrison | Garrison Relay disabled 25172 | -2/Garrison | Spotted B-90 Cyclops 25198 | -2/Garrison | Triggered checkpoint 25200 | -2/Garrison | Triggered checkpoint 25213 | -2/Garrison | Discovered new exit (range 15) 25286 | -2/Garrison | Triggered checkpoint 25289 | -2/Garrison | Garrison Relay disabled 25336 | -2/Garrison | Triggered checkpoint 25356 | -2/Garrison | Garrison Relay disabled 25365 | -2/Garrison | Discovered new exit (range 13) 25367 | -2/Garrison | Expanded RIF knowledge: Coupler Efficiency 25370 | -2/Garrison | Identified exit to Research 25378 | -2/Garrison | Entered Research 25381 | -2/Research | Identified exit to Access 25411 | -2/Research | Build established: Botlord-Sprinter 25501 | -2/Research | Discovered new exit (range 28) 25513 | -2/Research | Identified exit to Garrison 25513 | -2/Research | Entered Garrison 25547 | -2/Garrison | Garrison Relay disabled 25555 | -2/Garrison | Triggered checkpoint 25567 | -2/Garrison | Spotted B-90 Cyclops 25599 | -2/Garrison | Triggered checkpoint 25600 | -2/Garrison | Triggered checkpoint 25628 | -2/Garrison | Discovered exit to Access (range 9) 25631 | -2/Garrison | Triggered checkpoint 25675 | -2/Garrison | Discovered exit to Access (range 12) 25681 | -2/Garrison | Triggered checkpoint 25692 | -2/Garrison | Garrison Relay disabled 25751 | -2/Garrison | Lost 7 allies 25814 | -2/Garrison | Entered Access 25814 | -1/Access | Accompanied by 12 allies 25814 | -1/Access | Evolved 2 slots: Utility x2 25854 | -1/Access | Energy Cycler disabled 25922 | -1/Access | Identified exit to Garrison 25922 | -1/Access | Entered Garrison 25929 | -1/Garrison | Q-Series assembled to engage unique threat in Access 25979 | -1/Garrison | Garrison Relay disabled 25988 | -1/Garrison | Triggered checkpoint 25995 | -1/Garrison | Expanded RIF knowledge: Structural Interface 26023 | -1/Garrison | QS Assembler disabled 26032 | -1/Garrison | Found Prototype Device 26032 | -1/Garrison | Identified Exp. Thermal Shield 26087 | -1/Garrison | Spotted B-99 Colossus 26108 | -1/Garrison | Discovered new exit (range 12) 26112 | -1/Garrison | Garrison Relay disabled 26114 | -1/Garrison | Triggered checkpoint 26123 | -1/Garrison | Entered Access 26148 | -1/Access | Lost 9 allies 26149 | -1/Access | Lost 3 parts (3u) 26376 | -1/Access | Energy Cycler disabled 26376 | -1/Access | Spotted B-99 Colossus 26505 | -1/Access | Lost 8 parts (2n3u3w) 26505 | -1/Access | Discovered new exit (range 8) 26508 | -1/Access | Entered Command 26611 | -1/Command | Found Prototype Device 26611 | -1/Command | Identified Thermal Barrier 26621 | -1/Command | Found Prototype Device 26621 | -1/Command | Identified Exp. ECM Suite 26746 | -1/Command | Spotted B-99 Colossus 26799 | -1/Command | Lost 4 parts (1p2n1u) 26843 | -1/Command | Spotted Alpha 7 26843 | -1/Command | Spotted Striker 26843 | -1/Command | Spotted Executioner 26843 | -1/Command | Spotted Executioner 26843 | -1/Command | Spotted Alpha 7 26843 | -1/Command | Spotted Striker 26843 | -1/Command | Spotted Executioner 26843 | -1/Command | Spotted Executioner 26843 | -1/Command | Spotted B-99 Colossus 26846 | -1/Command | Spotted B-99 Colossus 26850 | -1/Command | Core integrity fell below 50% 26854 | -1/Command | Core integrity fell below 20% 26854 | -1/Command | Destroyed by Striker with Plasma Lance Last Messages --------------- 26853_ Triggered Stasis Trap. 26853_ A bubble of rippling energy engulfs the area. 26853_ Field strength at 94. 26853_ Knocked back. 26853_ Triggered Stasis Trap. 26853_ A bubble of rippling energy engulfs the area. 26853_ Field strength at 94. 26853_ Plasma Lance destroyed. 26853_ Knocked back. 26853_ Slug penetrates Executioner. 26853_ Penetrated by Slug. 26853_ Slug penetrates Wall. 26853_ Slug penetrates Executioner. 26853_ Slug penetrates Wall. 26854_ Penetrated by Slug. 26854_ Slug penetrates Executioner. 26854_ Field strength at 68. 26854_ Critical hit (Impale). Map ----- +----------------------------------------------------+ | ?????????????????????????????????????????????????? | | ?????????????????????????????????????????????????? | | ???????????????????????????????????""????????????? | | ??????????????????????????? ????"""???????????? | | ??????????????????????????# #???"R????????????? | | ??????????????????????????# #???"""???????????? | | ??????????????????????????# #???""????????????? | | ??????????????????????##### #?????????????????? | | ?????????????????????? #?????????????????? | | ??????????????????????? #????###+########## | | ???????????????????????? #????# | | ????????????????????????? #????# | | ??????????????????????????# ###### | | ??????????????????????????# """ [[ | | ?????????????????????######h ""T"" [ | | ?????????????????????# h "" "" | | ?????????????????????# | | ????????????????????## % | | ????????????????????#; % n hh | | ????????????????????## ############+##### | | ????????????????????#; #???????# # | | ????????????????????##////##??????# + | | ????????????????????# 7 % #??????#"""" #### | | ???????????????????## K^= 7##?????#"""" #??? | | ???????????????????#% %*^ ^ #?????#"""" #????## | | ???????????????????## %%@K##?????#"""" #?????? | | ???????????????????# E ^E #?????# #?????? | | ???????????????????## E##?????# ] #?????? | | ???????????????????# #?????# #?????? | | ???????????????????##E ;#?????####+###+#?????? | | ???????????????????# ^ #????????# #?# #?????? | | ???????????????????## ;#????????# #?# #?????? | | ????????????????????BB BB ????????# #?# #?????? | | ??????????????????? BB BB ????????# #?# #?????? | | ?????????????????? ???????# #?# #?????? | | ?????????????????# """""" ??????##+###+####??? | | ?????????????????# ?????? #?????# #??? | | ?????????????????# ?????? #?????# #??? | | ?????????????????# ??????? #?????# "" #### | | ?????????????????? ???????? #?????# """" + | | ???????????????????????????? ??????# """" #### | | ????????????????????????????????????# "" ## | | ????????????????????????????????????# ## | | ????????????????????????????????????# ## | | ????????????????????????????????????############ | | ???????????????????????????????????????????????# | | ???????????????????????????????????????????????# | | ??????????????????????????????????????#####????# | | ??????##+############################## #######+ | | ?????? % | +----------------------------------------------------+ Best States ------------- Heat Dissipation 97 Energy Generation 52 Energy Capacity 515 Matter Stores 300 Matter Capacity 300 Sight Range 22 Terrain Scan Density 10 ECM Strength 3 Jamming Range 14 Cloak Strength 2 Power Amplification 40 Additional Mass Support 12 EM Shielding 2 Corruption Containment 12 Armor Coverage 225 Core Shielding 20 Propulsion Shielding 33 Utility Shielding 66 Point Defense Rating 160 Weapon Cycling 20 Phase Shifting 15 Evasion (%) 80 Targeting Accuracy 16 Melee Accuracy 8 Core Analysis 6 Recoil Reduction 4 Energy Filtering 30 Kinecelleration 30 Salvage Targeting 4 Offensive Hacking 25 Defensive Hacking 33 Relay Coupler Types 4 Relay Coupler Value 278 Item Schematics ----------------- Transport Network Coupler | -9/Materials | Scanalyzed Utility Shielding | -9/Materials | Scanalyzed ECM Suite | -9/Materials | Scanalyzed Grenade Launcher | -9/Materials | Scanalyzed Plasma Cutter | -9/Materials | Scanalyzed Mni. Grenade Launcher | -8/Materials | Scanalyzed Stasis Canceller | -4/Factory | Hacked Structural Scanner | -4/Factory | Hacked Cld. Nuclear Pulse Thruster | -4/Factory | Hacked Robot Schematics ------------------ None Fabricated ------------ Hvy. Siege Treads | x1 | -5/Factory | Preloaded Stasis Canceller | x2 | -4/Factory Cld. Nuclear Pulse Thruster | x1 | -4/Factory Stasis Canceller | x2 | -3/Research Enh. Hardcell Cannon | x2 | -3/Research | Preloaded Repaired ---------- Lgt. Treads | 10% | -10/Materials Lgt. Treads | 19% | -10/Materials Lgt. Treads | 73% | -9/Materials Hcp. Storage Unit | 76% | -8/Materials Cld. Nuclear Pulse Thruster | 24% | -4/Factory Adv. Surge Thruster | 73% | -4/Factory Gravity Flail | 52% | -4/Factory Studied --------- Lgt. Treads | -9/Materials | Hacked Autogun | -9/Materials | Hacked Lgt. Assault Rifle | -9/Materials | Hacked Mni. Grenade Launcher | -8/Materials | Hacked Plasma Cutter | -8/Materials | Hacked Hvy. Assault Rifle | -8/Materials | Hacked Arm. Treads | -8/Materials | Hacked VTOL Module | -4/Factory | Hacked Adv. Surge Thruster | -4/Factory | Hacked Imp. Remote Datajack | -4/Factory | Hacked Lgt. Antimatter Reactor | -3/Research | Hacked Imp. Datajack | -3/Research | Hacked Nuclear Pulse Array | -2/Research | Hacked Alien Tech Used ----------------- None Achievements -------------- All Kinds Of Bad News Great Explorer Oppo Buddy Pwned Watcher Gambling Challenges ------------ None Game ------ Seed RingOvertunedLauncher Manual? 0 Play Time 04:42:40 Cumulative 210.3 hours Start 2025.11.30 @ 17:39:29 End 2025.11.30 @ 23:01:39 Sessions 1 Manual Loads 0 Difficulty Rogue Special Mode None Game No. 143 Rogue 143 Adventurer 0 Explorer 0 Win Type - Total 7 Types 5/0/1/1/0/0/0/0/0/0 Lore% 83 Gallery% 76 Achievement% 59 Wizard Run 0 Options --------- Layout 1 ASCII 0 Keyboard 0 Movement Mouse Keybinds 0 Fullscreen 2 Font 24/Smallcaps Map View 50x35 Zoom Use 0% Tactical HUD 1 Map Filters NONE Filters NONE Steam 1 RUN: 6f68f84b-e23d-4d64-a3ed-5f19ef9c19cf